Cogmind - Beta 16.1 @@@ ROGUE MODE // 2026.04.21 @ 19:05:57 Player: JuustuToug Result: Destroyed by H-88 Terminator with Heavy Machine Gun Performance ------------- Evolutions (8) 4000 Regions Visited (24) 4800 Robots Destroyed (408) 2040 Value Destroyed (25131) 25131 Prototype IDs (55) 1100 Alien Tech Used (5) 1000 Bonus (22898) 22898 TOTAL SCORE: 60969 Bonus ------- High Alert Combat Kills 17510 Follower Combat Kills 2618 Hunted by Unchained 500 Network Hubs Disabled 600 Registered with UFD 300 Met Optimus in HQ 500 Built Enhanced Grunts 300 Met R17 at Cetus 500 Met Optimus at Protoforge 1000 Friendly Fire -930 Cogmind --------- Core Integrity 0/1450 Matter 300/300 Energy 189/190 System Corruption 12% Temperature Cool (3) Movement Flying (39) Location -2/Protoforge Parts ------- > --- POWER (2) -------- Light Quantum Reactor > --- PROPULSION (7) --- Impulse Thruster Array Impulse Thruster Array Impulse Thruster Array > --- UTILITY (11) ----- Scrap Suit Experimental Optical Array Experimental Targeting Computer Concept Weapon Articulator Experimental Target Analyzer Experimental Core Analyzer Experimental Core Analyzer Experimental Reaction Control System Improved Core Shielding Centrium Light Armor Plating > --- WEAPON (3) ------- Overtuned Coil Gun Overtuned Railgun > --- INVENTORY (5) ---- Xenon Bombardment Thruster Advanced Kinecellerator Overtuned Coil Gun Helical Railgun Peak State ------------ > --- POWER ------------ Light Antimatter Reactor Micro Antimatter Reactor > --- PROPULSION ------- Electron Diverter Electron Diverter Improved Diametric Drive Impulse Thruster Array Impulse Thruster Array > --- UTILITY ---------- 0bPrime Scrap Suit Medium Storage Unit Experimental Optical Array Long-range Sensor Array Experimental Signal Interpreter Concept Weapon Articulator Experimental Target Analyzer Experimental Core Analyzer Experimental Core Analyzer Centrium Light Armor Plating > --- WEAPON ----------- KE Penetrator Concept XC Strikerail Concept XC Strikerail > --- INVENTORY -------- Light Antimatter Reactor Experimental Coolant Injector Stasis Canceller Advanced Transmission Jammer ECM Suite Experimental ECM Suite Heavy Machine Gun [Rating: 198] Favorites ----------- Power Light Angular Momentum Engine Engine Light Angular Momentum Engine Power Core Micro Nuclear Core Reactor Micro Antimatter Reactor Propulsion Light Treads Treads Light Treads Leg Carbon-fiber Leg Wheel Compact Wheel Flight Unit Impulse Thruster Array Utility Medium Storage Unit Device Seismic Detector Storage Medium Storage Unit Processor Experimental Core Analyzer Hackware Hacking Suite Protection Experimental Propulsion Shielding Weapon Improved Assault Rifle Energy Gun Small Laser Energy Cannon Phase Cannon Ballistic Gun Improved Assault Rifle Ballistic Cannon Light Cannon Launcher Rocket Launcher Special Weapon Improved Remote Datajack Impact Weapon Powered Hammer Slashing Weapon Phasing Sabre Piercing Weapon Spear Build | -11 -10 -10 -9 -9 -9 -8 -8 -7 -7 -7 -7 -5 -5 -5 -4 -4 -4 -4 -4 -3 -3 -2 -2 -2 ------- Run | Yrd Mat Min Mat Min Exi Min Mat Fac Sto Rec Scr Fac Upp Upp Fac Ext Cet Arc Hub Res Qua Res Tes Frg Slots Evolved 16 | . . . 2 . . . 2 2 . . . 4 . . 2 . . . . 2 . 2 . . Power 1 | . . . . . . . . . . . . 1 . . . . . . . . . . . . Propulsion 5 | . . . 1 . . . 1 1 . . . 1 . . . . . . . 1 . . . . Utility 9 | . . . . . . . 1 1 . . . 2 . . 2 . . . . 1 . 2 . . Weapon 1 | . . . 1 . . . . . . . . . . . . . . . . . . . . . Parts Attached 295 | 8 9 7 13 2 1 . 19 15 . 2 1 19 3 . 8 6 4 6 2 14 4 2 9 141 Power 38 | 2 2 1 1 . . . 1 2 . . . 1 . . 2 1 . 2 . 4 . . 2 17 Engine 9 | 2 1 1 1 . . . 1 . . . . . . . 1 . . 1 . 1 . . . . Core 5 | . 1 . . . . . . 2 . . . 1 . . . . . 1 . . . . . . Reactor 24 | . . . . . . . . . . . . . . . 1 1 . . . 3 . . 2 17 Propulsion 57 | 2 3 2 6 . . . 10 4 . . . 7 . . 1 . . 2 1 6 1 . 2 10 Treads 12 | 2 1 1 6 . . . 2 . . . . . . . . . . . . . . . . . Leg 3 | . . . . . . . 3 . . . . . . . . . . . . . . . . . Wheel 7 | . 2 1 . . . . 4 . . . . . . . . . . . . . . . . . Hover . | . . . . . . . . . . . . . . . . . . . . . . . . . Flight 35 | . . . . . . . 1 4 . . . 7 . . 1 . . 2 1 6 1 . 2 10 Utility 111 | 2 2 2 1 1 1 . 2 6 . . . 8 1 . 5 3 4 2 1 3 . 2 2 63 Device 51 | 1 1 1 1 1 . . 1 2 . . . 5 . . 3 1 . 1 . 3 . . 1 29 Storage 5 | 1 1 . . . 1 . . 1 . . . . . . . . . . . . . . . 1 Processor 16 | . . . . . . . . 1 . . . 1 1 . 1 . . . . . . 1 . 11 Hackware 9 | . . . . . . . . 2 . . . 2 . . 1 . 1 1 . . . 1 1 . Protection 30 | . . 1 . . . . 1 . . . . . . . . 2 3 . 1 . . . . 22 Artifact . | . . . . . . . . . . . . . . . . . . . . . . . . . Weapon 89 | 2 2 2 5 1 . . 6 3 . 2 1 3 2 . . 2 . . . 1 3 . 3 51 Energy Gun 5 | 2 1 1 . . . . . . . . . . . . . . . . . . . . 1 . Energy Cannon 4 | . . . . . . . . . . . . 1 . . . . . . . 1 1 . . 1 Ballistic Gun 59 | . 1 . 4 . . . 5 . . . . . . . . . . . . . . . 1 48 Ballistic Cannon 2 | . . 1 . . . . . . . . . . . . . . . . . . . . . 1 Launcher 4 | . . . 1 1 . . . . . . . . 1 . . . . . . . . . . 1 Special Weapon 3 | . . . . . . . . . . . . 1 . . . . . . . . 1 . 1 . Impact Weapon 2 | . . . . . . . 1 1 . . . . . . . . . . . . . . . . Slashing Weapon 9 | . . . . . . . . 2 . 1 1 1 1 . . 2 . . . . 1 . . . Piercing Weapon 1 | . . . . . . . . . . 1 . . . . . . . . . . . . . . Special Melee Weapon . | . . . . . . . . . . . . . . . . . . . . . . . . . Unidentified Prototypes 48 | . . . 2 1 . . 1 . . . . 3 . . 1 . 1 . . 6 3 . 4 26 Corrupted Parts 1 | . . . . . . . 1 . . . . . . . . . . . . . . . . . System Corruption 5 | . . . . . . . 5 . . . . . . . . . . . . . . . . . Parts Lost 83 | . 5 2 . . . . 8 . . . . 1 3 . . . . 1 1 1 . 3 . 58 Power 8 | . 1 . . . . . . . . . . . 1 . . . . 1 . . . 1 . 4 Propulsion 19 | . 2 1 . . . . 5 . . . . 1 1 . . . . . 1 . . . . 8 Utility 29 | . . 1 . . . . . . . . . . 1 . . . . . . 1 . 1 . 25 Weapon 27 | . 2 . . . . . 3 . . . . . . . . . . . . . . 1 . 21 Highest Loss Streak 5 | . 3 1 . . . . 4 . . . . 1 3 . . . . 1 1 1 . 3 . 5 To Critical Strikes 2 | . . . . . . . . . . . . . . . . . . . . . . . . 2 Average Backups 11 | 1 6 12 14 15 15 18 20 11 10 9 9 9 8 10 9 10 10 9 9 9 9 9 9 5 Power 1 | . 1 1 1 1 . 1 1 1 1 1 1 . . 1 1 1 1 . 1 2 1 . 1 . Propulsion 1 | . 1 . 3 4 3 4 3 1 1 1 . 1 1 1 1 2 2 1 . . 1 1 . . Utility 5 | . 1 4 6 7 7 10 11 7 6 5 5 5 4 5 4 6 6 6 6 5 4 3 3 2 Weapon 2 | . 2 6 4 3 2 3 3 1 2 2 2 1 2 3 2 1 1 1 1 1 1 2 2 1 Tool/Special . | . . . . . . . . . . . . . . . . . . . . . . . . . Unused Backups 49 | . 1 2 12 1 . . . 6 . 1 3 4 1 . 3 . . . . 2 . 2 . 11 Power 4 | . . . . . . . . 1 . . . . . . . . . . . 1 . . . 2 Propulsion 8 | . 1 . 2 . . . . . . . . 1 1 . 2 . . . . . . . . 1 Utility 19 | . . 1 2 1 . . . 4 . 1 3 2 . . . . . . . 1 . 1 . 3 Weapon 17 | . . 1 7 . . . . 1 . . . 1 . . 1 . . . . . . 1 . 5 Tool/Special 1 | . . . 1 . . . . . . . . . . . . . . . . . . . . . Average Slot Usage (%) 89 | . 99 97 99 100 94 87 84 81 92 92 91 87 93 94 89 89 89 91 86 87 84 85 85 78 Engine 5 | . 7 4 11 11 11 11 9 . . . . . . . 4 5 5 5 4 1 4 . 2 . Core 2 | . 6 9 . . . . . 6 7 7 7 10 11 11 5 4 5 5 4 3 . . . . Reactor 1 | . . . . . . . . . . . . . . . . . . . . 3 4 7 5 4 Treads 12 | . 14 18 31 33 33 33 24 . . . . . . . . . . . . . . . . . Wheel 2 | . 13 9 1 . . . 4 . . . . . . . . . . . . . . . . . Flight 11 | . . . . . . . . 33 38 38 38 30 28 29 22 21 21 23 26 23 22 21 20 18 Device 11 | . 14 9 11 11 5 . 8 5 7 7 7 10 5 5 9 9 5 7 9 14 17 18 16 16 Storage 7 | . 14 14 11 11 11 11 9 7 7 7 7 5 5 5 5 5 5 5 5 4 4 4 4 1 Processor 6 | . . . . . . . . 4 7 7 7 5 7 11 10 10 10 10 10 9 9 11 13 19 Hackware 4 | . . . . . . . . 6 7 7 7 10 11 11 14 15 15 15 15 9 9 12 13 1 Protection 1 | . . 2 . . . . . 1 . . . . 2 . . . 4 2 . 3 1 . . 3 Energy Gun 3 | . 20 14 7 . . . . . . . . . . . . . . . . . . . . . Ballistic Gun 12 | . 7 . 24 32 33 32 26 2 . . . . . . . . . . . . . . 2 10 Ballistic Cannon 1 | . . 14 . . . . . . . . . . . . . . . . . . . . . . Special Weapon 1 | . . . . . . . . . . . . 1 5 5 5 5 5 5 1 1 3 4 1 . Slashing Weapon 1 | . . . . . . . . 5 7 8 7 5 5 5 5 5 5 5 4 4 4 4 4 . Peak Build Rating 198 | 7 11 16 25 31 24 24 34 49 50 50 51 87 87 79 104 107 110 119 115 151 165 175 177 198 Average Rating 79 | 5 8 11 21 23 23 23 23 38 49 49 49 76 76 79 98 104 109 112 105 125 157 170 174 174 On Entrance 70 | . 7 10 14 23 24 24 24 30 45 50 50 50 87 79 79 100 106 110 114 99 143 158 153 175 Avg Prop Armor Cover (%) 10 | . 14 10 16 . . . 6 4 . . . . . . . . . . 29 . . . . . Naked Turns . | . . . . . . . . . . . . . . . . . . . . . . . . . Heaviest Build 227 | 15 28 38 41 39 218 218 227 25 25 25 24 40 41 37 44 48 48 49 45 57 60 54 57 59 Greatest Support 80 | 40 40 40 60 60 60 60 80 25 25 25 25 45 45 45 46 55 55 55 45 65 58 58 59 61 Greatest Overweight (x) 13 | . 1 3 3 . 3 3 13 . . . . . . . . . . . 7 . 1 . 1 1 Average Overweight (x) . | . . . . . . 3 3 . . . . . . . . . . . . . . . . . Largest Inventory Capacity 35 | 8 15 15 15 15 35 35 35 35 10 10 10 10 10 10 10 10 10 10 10 10 10 10 10 10 Average Capacity 14 | 7 9 15 15 15 24 35 35 13 10 10 10 10 10 10 10 10 10 10 10 10 10 10 10 6 Most Carried 26 | 2 12 15 15 15 18 19 26 25 10 10 10 10 10 10 10 10 10 10 10 10 10 10 10 10 Average Carried 11 | 1 6 13 14 15 15 18 20 10 9 9 9 9 8 10 9 10 10 9 9 9 9 9 9 5 Final Capacity 35 | 8 15 15 15 15 35 35 35 10 10 10 10 10 10 10 10 10 10 10 10 10 10 10 10 5 Final Carried 25 | 2 12 15 15 15 18 19 25 10 10 10 10 10 10 10 10 10 10 10 9 10 10 10 10 5 Scrap Suit Usage (%) 1 | . . . . . . . . . . . . . . . . . . . . . . . . 5 Parts Cannibalized 5 | . . . . . . . . . . . . . . . . . . . . . . . . 5 Class Distribution -------------------- 19% | Scavenger-Gunner 13% | Scavenger-Sprinter 13% | Hauler-Gunner 12% | Hacker-Ninja 11% | Scavenger-Mutant 6% | Commander-Scout 5% | Hacker-Scout 4% | Mutant 3% | Sprinter Dominant Class ---------------- Scavenger-Mutant | -10/Materials Scavenger-Mutant | -10/Mines Scavenger-Gunner | -9/Materials Scavenger-Gunner | -9/Mines Scavenger-Gunner | -9/Exiles Hauler-Gunner | -8/Mines Hauler-Gunner | -8/Materials Sprinter | -7/Factory Sprinter | -7/Storage Sprinter | -7/Recycling Sprinter | -7/Scraptown Hacker-Sprinter | -5/Factory Scientist-Sprinter | -5/Upper Caves Scientist-Sprinter | -5/Upper Caves Hacker-Scout | -4/Factory Commander-Scout | -4/Extension Commander-Sprinter | -4/Cetus Commander-Scout | -4/Archives Commander-Scout | -4/Hub_04(d) Hacker-Scout | -3/Research Hacker-Ninja | -3/Quarantine Hacker-Ninja | -2/Research Hacker-Ninja | -2/Testing Scavenger-Sprinter | -2/Protoforge Resources | -11 -10 -10 -9 -9 -9 -8 -8 -7 -7 -7 -7 -5 -5 -5 -4 -4 -4 -4 -4 -3 -3 -2 -2 -2 ----------- Run | Yrd Mat Min Mat Min Exi Min Mat Fac Sto Rec Scr Fac Upp Upp Fac Ext Cet Arc Hub Res Qua Res Tes Frg Matter Collected 14227 | 280 145 266 557 165 10 61 618 417 40 20 . 322 139 . 50 661 67 70 3 437 156 131 126 9486 Remotely . | . . . . . . . . . . . . . . . . . . . . . . . . . Salvage Created 25688 | 174 675 87 804 157 . 22 829 97 31 59 . 492 175 . 122 248 26 178 26 174 156 286 146 20724 Parts 1155 | 10 32 6 50 16 . 8 48 . 2 1 . 11 9 . 3 10 . 14 3 2 7 10 16 897 Haulers Intercepted 7 | . 1 . 4 . . . . . . . . . . . . . . . . . 1 . . 1 Recyclers Shooed 11 | . 2 . 2 . . . 1 1 . 1 . 2 . . 1 . . . . 1 . . . . Parts Field Recycled . | . . . . . . . . . . . . . . . . . . . . . . . . . Retrieved Matter . | . . . . . . . . . . . . . . . . . . . . . . . . . Parts Self-Destructed 8 | . . . . . . . . . . . . . 8 . . . . . . . . . . . Prevented . | . . . . . . . . . . . . . . . . . . . . . . . . . Parts Restored . | . . . . . . . . . . . . . . . . . . . . . . . . . Kills | -11 -10 -10 -9 -9 -9 -8 -8 -7 -7 -7 -7 -5 -5 -5 -4 -4 -4 -4 -4 -3 -3 -2 -2 -2 ------- Run | Yrd Mat Min Mat Min Exi Min Mat Fac Sto Rec Scr Fac Upp Upp Fac Ext Cet Arc Hub Res Qua Res Tes Frg Combat Hostiles Destroyed 340 | . 15 4 10 8 . 4 22 . . . . . 5 . . 2 . . . . . . 2 268 Melee 3 | . . . . . . . . . . . . . . . . 1 . . . . . . 2 . Guns 312 | . 15 1 8 1 . 1 19 . . . . . . . . . . . . . . . . 267 Cannons 4 | . . 3 . . . . . . . . . . . . . . . . . . . . . 1 AOE 21 | . . . 2 7 . 3 3 . . . . . 5 . . 1 . . . . . . . . Classes Destroyed 26 | 3 5 1 3 . . . 1 . . . . . . . . 1 . . . . . . . 12 Worker 8 | 1 1 . 1 . . . 4 1 . . . . . . . . . . . . . . . . Tunneler 4 | 3 . . . . . . . . . . . . . . . . . . 1 . . . . . Hauler 7 | . 1 . 4 . . . . . . . . . . . . . . . . . 1 . . 1 Recycler 13 | 1 1 . 1 . . . 1 1 . 1 . 3 . . 1 1 . . . 1 . 1 . . Mechanic 16 | . . . 1 . . . . . 1 . . . . . . . . . . 1 . 1 . 12 Operator 11 | . 1 . 2 . . . . . . . . . . . . . . 5 . . 2 . 1 . Drone 13 | . . . . . . . . . . . . . . . . . . . . . . . . 13 Watcher 7 | . 2 . 1 . . . . . . . . 2 . . . . . . . . . . . 2 Swarmer 54 | . 6 . . 3 . 4 9 . . . . . 5 . . 1 . . . . . . . 26 Saboteur 11 | . . . . . . . . . . . . . . . . . . . . . . . . 11 Grunt 65 | . 9 2 8 4 . . 8 . . . . . . . . . . . . . . . . 34 Brawler 12 | . . . . . . . . . . . . . . . . . . . . . . . . 12 Duelist 15 | . . . 1 1 . . . . . . . . . . . . . . . . . . . 13 Protector 14 | . . . . . . . . . . . . . . . . . . . . . . . . 14 Sentry 9 | . . . 2 . . . 4 . . . . . . . . . . . . . . . . 3 Specialist 3 | . . . . . . . . . . . . . . . . . . . . . . . . 3 Hunter 30 | . . . . . . . . . . . . . . . . . . . . . . . . 30 Programmer 26 | . . . . . . . . . . . . . . . . 1 . . . . . . 2 23 Heavy 1 | . . . . . . . 1 . . . . . . . . . . . . . . . . . Behemoth 1 | . . . . . . . . . . . . . . . . . . . . . . . . 1 Hotshot 17 | . . . . . . . . . . . . . . . . . . . . . . . . 17 Striker 33 | . . . . . . . . . . . . . . . . . . . . . . . . 33 Executioner 35 | . . . . . . . . . . . . . . . . . . . . . . . . 35 Elite 1 | . . . . . . . . . . . . . . . . . . . . . . . . 1 Scrapoid 2 | . . . . . . . . . . . . . . . . . . . . . . . . 2 Scraphulk 1 | . . . . . . . . . . . . . . . . . . . . . . . . 1 Packrat 2 | . . . . . . . . . . . . . 2 . . . . . . . . . . . Assembled 2 | . . 2 . . . . . . . . . . . . . . . . . . . . . . Best Kill Streak 33 | 3 5 2 4 3 . 4 5 1 1 1 . 2 5 . 1 2 . 5 1 1 2 1 1 33 Combat Bots Only 32 | . 5 2 3 3 . 4 4 . . . . . 5 . . 1 . . . . . . 1 32 Max Kills in Single Turn 4 | 2 2 1 2 3 . 3 3 1 1 1 . 1 4 . 1 1 . 1 1 1 1 1 1 3 Gunslinging 1 | . 1 . . . . . 1 . . . . . . . . . . . . . . . . 1 Exploded 4 | . . . 2 3 . 3 2 . . . . . 4 . . 1 . . . . . . . . Melee 1 | . . . . . . . . . . . . . . . . 1 . . . . . . 1 . Uniques/NPCs Destroyed . | . . . . . . . . . . . . . . . . . . . . . . . . . Combat | -11 -10 -10 -9 -9 -9 -8 -8 -7 -7 -7 -7 -5 -5 -5 -4 -4 -4 -4 -4 -3 -3 -2 -2 -2 -------- Run | Yrd Mat Min Mat Min Exi Min Mat Fac Sto Rec Scr Fac Upp Upp Fac Ext Cet Arc Hub Res Qua Res Tes Frg Hostile Shots Fired 1331 | . 100 16 38 8 . 10 146 11 11 . . 11 28 . 3 11 4 5 13 12 2 35 25 842 Missed 584 | . 28 5 16 3 . 1 36 7 6 . . 6 9 . 1 7 . 2 4 6 2 19 12 414 Hits 747 | . 72 11 22 5 . 9 110 4 5 . . 5 19 . 2 4 4 3 9 6 . 16 13 428 Melee 13 | . . 5 4 1 . . . . . . . . . . . . . . . . . . . 3 Projectile 734 | . 72 6 18 4 . 9 110 4 5 . . 5 19 . 2 4 4 3 9 6 . 16 13 425 AOE 1 | . . . . . . . 1 . . . . . . . . . . . . . . . . . Critical Strikes 36 | . . . 1 . . 1 6 . 1 . . . 1 . 1 . 2 1 . . . 1 . 21 Actively Blocked 4 | . . . . . . . . . . . . . . . . . . . . . . . . 4 Part Disruptions 5 | . . . . . . . 1 . . . . . . . . . . . . . . . . 4 Actively Blocked 1 | . . . . . . . . . . . . . . . . . . . . . . . . 1 Damage Taken 18798 | . 786 248 393 127 . 111 1680 48 46 . . 73 360 . 39 117 184 219 318 167 . 603 303 12976 Core 2147 | . 116 14 142 11 . 16 220 . 17 . . . 67 . . . 24 44 73 21 . 34 45 1303 Absorbed by Shields 13 | . . . . . . . . . . . . . . . . 13 . . . . . . . . Redirected to Shielding 2097 | . . . . . . . . . . . . . . . . . . . . . . . . 2097 Regen/Repaired (Parts) 1138 | . 52 . 73 . . . 176 . . . . . . . . . . . . . . 191 320 326 Core Remaining (%) 80 | 100 . 48 . . . 57 60 . . . 97 . . 93 . . . . 87 . 98 . . . Volleys Fired 948 | 12 65 16 46 8 . 2 56 . . . . 6 9 1 30 56 1 . 6 32 6 5 2 589 Largest 3 | 2 2 2 3 3 . 3 3 . . . . 1 1 1 1 1 1 . 1 1 1 1 1 3 Hottest 121 | 100 100 105 121 71 . 71 84 . . . . 85 85 85 85 85 7 . 85 85 113 10 50 120 Shots Fired 2314 | 21 130 32 126 14 . 4 163 . . . . 6 9 1 30 56 1 . 6 32 6 5 2 1670 Gun 2123 | 21 130 16 120 9 . 3 161 . . . . . . . . . . . . . . . 2 1661 Cannon 111 | . . 16 . . . . . . . . . 5 7 1 29 8 . . 6 27 5 . . 7 Launcher 20 | . . . 6 5 . 1 2 . . . . . 2 . . 4 . . . . . . . . Special 60 | . . . . . . . . . . . . 1 . . 1 44 1 . . 5 1 5 . 2 Kinetic 1979 | . 37 16 89 9 . 3 161 . . . . . . . . . . . . . . . 1 1663 Thermal 254 | 21 93 16 31 . . . . . . . . 5 7 1 29 8 . . 6 27 5 . . 5 Explosive 20 | . . . 6 5 . 1 2 . . . . . 2 . . 4 . . . . . . . . Electromagnetic 1 | . . . . . . . . . . . . . . . . . . . . . . . 1 . Robot Hit Streak 41 | 5 13 4 23 5 . 2 24 . . . . 1 . . 2 14 15 . . 16 . 5 . 41 Robot Miss Streak 6 | 1 4 4 4 2 . 1 5 . . . . . . . . 2 . . . 3 1 . . 6 Penetration Max 2 | . . . . . . . . . . . . . . . . . . . . . . . . 2 Secondary Targets 82 | . 2 . 1 . . . 5 . . . . . . . . . . . . . . . . 74 Max Gunslinging Chain 2 | . 1 . 1 . . . 2 . . . . . . . . . . . . . . . . 2 Shots Hit Robots 1755 | 15 87 18 76 6 . 2 104 3 1 2 . 15 2 . 6 51 2 9 . 8 3 11 3 1331 Core Hits 818 | 6 38 7 39 12 . 4 54 . 1 . . 2 10 . 1 6 1 3 11 1 . 3 3 616 Critical Kills 117 | . . . 1 . . . . . . . . . . . . . . . . . . . . 116 Critical Parts Destroyed 141 | . . . 1 . . . . . . 1 . . . . . . . . . . . . . 139 Critical Strikes 290 | 2 4 . 4 . . . . . . 1 . 1 . . 1 . . . . . . . . 277 Burn 8 | 2 4 . 2 . . . . . . . . . . . . . . . . . . . . . Destroy 279 | . . . 2 . . . . . . . . . . . . . . . . . . . . 277 Smash 1 | . . . . . . . . . . 1 . . . . . . . . . . . . . . Sever 1 | . . . . . . . . . . . . . . . 1 . . . . . . . . . Impale 1 | . . . . . . . . . . . . 1 . . . . . . . . . . . . Melee Attacks 168 | . . . . . . . 2 10 4 5 . 37 2 . 11 6 1 10 . 24 14 17 15 10 Impact 9 | . . . . . . . 2 4 1 2 . . . . . . . . . . . . . . Slashing 157 | . . . . . . . . 6 3 3 . 35 2 . 11 6 1 10 . 24 14 17 15 10 Piercing 2 | . . . . . . . . . . . . 2 . . . . . . . . . . . . Sneak Attacks 29 | . . . . . . . . 2 1 2 . 5 2 . 2 1 . 8 . 3 1 2 . . Combat Hostiles . | . . . . . . . . . . . . . . . . . . . . . . . . . Follow-up Attacks 3 | . . . . . . . . . . 1 . 2 . . . . . . . . . . . . Damage Inflicted 62728 | 199 1001 277 1996 491 . 257 2156 230 98 235 . 1063 402 . 303 695 92 892 186 474 473 872 249 50087 Guns 53871 | 199 1000 97 1292 74 . 35 1749 . . . . . . . . . . . . . . . . 49425 Cannons 499 | . . 151 . . . . . . . . . . . . 29 94 . . . 31 . . . 194 Explosions 2287 | . . . 694 411 . 222 396 . . . . . 225 . . 153 . . 186 . . . . . Melee 5964 | . . . . . . . . 230 98 235 . 1063 177 . 274 448 92 892 . 443 473 822 249 468 Ramming 107 | . 1 29 10 6 . . 11 . . . . . . . . . . . . . . 50 . . Kinetic 52638 | . 195 151 815 74 . 35 1749 . . . . . . . . . . . . . . . . 49619 Thermal 1732 | 199 805 97 477 . . . . . . . . . . . 29 94 . . . 31 . . . . Explosive 2101 | . . . 694 411 . 222 396 . . . . . 225 . . 153 . . . . . . . . Electromagnetic 186 | . . . . . . . . . . . . . . . . . . . 186 . . . . . Impact 323 | . . . . . . . . 184 . 139 . . . . . . . . . . . . . . Slashing 5582 | . . . . . . . . 46 98 96 . 1004 177 . 274 448 92 892 . 443 473 822 249 468 Piercing 59 | . . . . . . . . . . . . 59 . . . . . . . . . . . . Highest Corruption 12 | . . . . . . . 5 . . . . 2 2 2 . . . . 3 . . . 1 12 Average Corruption 3 | . . . . . . . 5 . . . . 2 2 2 . . . . 2 . . . 1 3 Corruption Purged . | . . . . . . . . . . . . . . . . . . . . . . . . . Corruption Blocked . | . . . . . . . . . . . . . . . . . . . . . . . . . Effects 88 | . . . . . . . 1 . . . . 4 3 . . . . . . . . . 2 78 Message Errors 10 | . . . . . . . . . . . . 1 1 . . . . . . . . . . 8 Matter Fused 18 | . . . . . . . . . . . . 1 2 . . . . . . . . . . 15 Heat Flow Errors 9 | . . . . . . . . . . . . . . . . . . . . . . . 1 8 Energy Discharges 9 | . . . . . . . . . . . . . . . . . . . . . . . . 9 Parts Rejected 1 | . . . . . . . . . . . . . . . . . . . . . . . . 1 Parts Fused 1 | . . . . . . . . . . . . . . . . . . . . . . . . 1 Data Loss (minor) 11 | . . . . . . . 1 . . . . 1 . . . . . . . . . . 1 8 Data Loss (major) 3 | . . . . . . . . . . . . . . . . . . . . . . . . 3 Alerts 3 | . . . . . . . . . . . . 1 . . . . . . . . . . . 2 Misdirections 6 | . . . . . . . . . . . . . . . . . . . . . . . . 6 Weapon Failures 17 | . . . . . . . . . . . . . . . . . . . . . . . . 17 Overload Shots . | . . . . . . . . . . . . . . . . . . . . . . . . . Overflow Damage 2326 | . . . 8 . . . 7 139 . 205 . 441 . . 117 103 . 294 . 145 374 295 . 198 Projectiles 25 | . . . . . . . . . . . . . . . . . . . . . . . . 25 Explosions 15 | . . . 8 . . . 7 . . . . . . . . . . . . . . . . . Melee 2286 | . . . . . . . . 139 . 205 . 441 . . 117 103 . 294 . 145 374 295 . 173 Knockbacks 4 | . . 2 . . . . . 1 . 1 . . . . . . . . . . . . . . Impact 2 | . . . . . . . . 1 . 1 . . . . . . . . . . . . . . Kinetic 2 | . . 2 . . . . . . . . . . . . . . . . . . . . . . Secondary . | . . . . . . . . . . . . . . . . . . . . . . . . . Self-Inflicted Damage 317 | . . . 33 48 . 33 73 . . . . . . . . . . . 105 . . 25 . . Shots 6 | . . . 1 1 . 1 2 . . . . . . . . . . . 1 . . . . . Rammed 10 | . 1 2 3 1 . . 1 . . . . . . . . . . . . . . 2 . . Targets Rammed 13 | . 1 2 4 1 . . 3 . . . . . . . . . . . . . . 2 . . Kicked 1 | . . . . . . . 1 . . . . . . . . . . . . . . . . . Crushed 2 | . . . 1 . . . 1 . . . . . . . . . . . . . . . . . Highest Temperature 310 | 254 213 90 302 44 . 28 86 8 23 8 4 310 306 66 180 174 . 3 300 254 194 115 191 230 Average Temperature 48 | 102 65 34 73 16 . 16 24 3 8 2 2 42 89 35 60 64 . 2 115 46 57 39 17 52 Received Heat Transfer 1608 | . 297 51 93 24 . . 450 6 33 . . . 168 . 12 15 . 21 27 . . 45 . 366 Effects 4 | 1 . . . . . . . . . . . 1 . . . . . . 2 . . . . . Energy Bleed 1 | . . . . . . . . . . . . 1 . . . . . . . . . . . . Interference 3 | 1 . . . . . . . . . . . . . . . . . . 2 . . . . . Siege Activations . | . . . . . . . . . . . . . . . . . . . . . . . . . Martial Activations . | . . . . . . . . . . . . . . . . . . . . . . . . . Shielding Activations . | . . . . . . . . . . . . . . . . . . . . . . . . . Robots Disrupted . | . . . . . . . . . . . . . . . . . . . . . . . . . Combat Hostiles . | . . . . . . . . . . . . . . . . . . . . . . . . . Robots Corrupted 2 | . . . . . . . . 1 . 1 . . . . . . . . . . . . . . Combat Hostiles . | . . . . . . . . . . . . . . . . . . . . . . . . . Parts Fried 3 | . . . . . . . . 2 . 1 . . . . . . . . . . . . . . Impact Corruptions 5 | . . . . . . . . 4 . 1 . . . . . . . . . . . . . . Robots Melted . | . . . . . . . . . . . . . . . . . . . . . . . . . Combat Hostiles . | . . . . . . . . . . . . . . . . . . . . . . . . . Parts Melted 10 | 1 6 . . . . . . . . . . . . . . . . . . . . . . 3 Heat Transferred 4600 | 740 2451 225 999 . . . . . . . . . . . 37 111 . . . 37 . . . . Parts Sabotaged . | . . . . . . . . . . . . . . . . . . . . . . . . . Parts Stolen . | . . . . . . . . . . . . . . . . . . . . . . . . . Parts Stripped . | . . . . . . . . . . . . . . . . . . . . . . . . . Power Chain Reactions . | . . . . . . . . . . . . . . . . . . . . . . . . . Alert | -11 -10 -10 -9 -9 -9 -8 -8 -7 -7 -7 -7 -5 -5 -5 -4 -4 -4 -4 -4 -3 -3 -2 -2 -2 ------- Run | Yrd Mat Min Mat Min Exi Min Mat Fac Sto Rec Scr Fac Upp Upp Fac Ext Cet Arc Hub Res Qua Res Tes Frg Maximum Alert Level 5 | . . . 2 1 . . 1 . . . . . . . . 3 2 1 3 2 1 . . 5 Low Security (%) 62 | 100 100 100 21 96 . 100 71 100 100 100 . 100 . . 100 58 . 15 76 . 69 100 100 22 Level 1 12 | . . . 41 3 . . 28 . . . . . . . . 4 . 84 9 83 30 . . 6 Level 2 8 | . . . 36 . . . . . . . . . . . . 16 99 . 7 16 . . . 3 Level 3 2 | . . . . . . . . . . . . . . . . 21 . . 7 . . . . 3 Level 4 . | . . . . . . . . . . . . . . . . . . . . . . . . 4 Level 5 12 | . . . . . . . . . . . . . . . . . . . . . . . . 59 High Security . | . . . . . . . . . . . . . . . . . . . . . . . . . Max Security . | . . . . . . . . . . . . . . . . . . . . . . . . . Peak Influence 6052 | 10 197 84 449 216 . 99 316 168 71 198 . 55 . . 45 841 524 311 744 428 254 50 42 6052 Initial 430 | . . 39 1 159 . . . 130 66 18 . . . . 33 . 430 172 94 390 168 1 . . Average 666 | . 99 5 315 80 . 11 120 142 53 110 . 19 . . 18 341 466 263 214 341 125 28 7 2641 Influence Increases 14250 | 25 541 80 949 261 . 99 699 96 22 240 . 258 110 . 131 1421 370 269 760 185 203 121 196 7214 Destroy 0b10 Robot/C 7440 | . 300 40 480 160 . 80 440 . . . . 20 100 . . 620 160 80 100 . . . 40 4820 Destroy 0b10 Robot/NC 535 | 25 30 . 65 . . . 25 10 5 5 . 30 . . 5 15 10 25 10 10 15 25 5 220 Destroy Leader 1184 | . 66 10 132 30 . 10 90 . . . . 16 10 . . 54 . . 20 . 2 6 10 728 Allied During Kill 1041 | . . . 94 . . . . . . . . . . . . 579 170 105 93 . . . . . Successful Hack 571 | . 25 . 37 . . . 7 38 . 54 . 86 . . 53 12 . . 15 54 76 42 42 30 Select Force Hacks 370 | . 60 . 30 . . . . . . 180 . . . . . . . . 100 . . . . . Disable Machine 690 | . . 30 60 30 . . 15 30 15 . . 15 . . 15 15 . 45 150 . 90 . 60 120 Destroy Structure 1309 | . . . 51 41 . 9 17 3 2 1 . 46 . . 58 66 30 14 212 46 20 33 24 636 Partial Spotted 165 | . . . . . . . . . . . . 30 . . . 30 . . . 15 . 15 15 60 Lose Combat Pursuer 945 | . 60 . . . . . 105 15 . . . 15 . . . 30 . . 60 60 . . . 600 Influence Decreases 8220 | 25 440 176 545 612 58 99 412 237 120 100 188 225 63 26 185 652 709 428 287 628 501 124 196 1184 Entered New Map 2142 | . . 62 4 250 58 . . 157 80 30 188 . 13 16 21 . 339 258 177 354 133 2 . . Time Decay 4465 | 25 390 104 521 362 . 99 332 80 40 70 . 196 30 10 164 472 190 80 40 254 114 112 176 604 Lost Part 777 | . 50 10 . . . . 80 . . . . 7 20 . . . . 10 10 10 . . . 580 Lost Ally 562 | . . . 20 . . . . . . . . 22 . . . 180 180 80 60 10 . 10 . . Purge Threat 274 | . . . . . . . . . . . . . . . . . . . . . 254 . 20 . Squads Dispatched 65 | . 3 . 3 . . . 2 2 . . . 10 . . 10 . . . 2 8 2 8 5 10 Investigation 31 | . 2 . 1 . . . 1 . . . . 5 . . 5 . . . 2 3 . 5 1 6 Extermination 12 | . . . . . . . . . . . . 1 . . 2 . . . . 1 2 2 3 1 Reinforcement 17 | . 1 . 1 . . . 1 2 . . . 1 . . 2 . . . . 4 . 1 1 3 Assault 1 | . . . 1 . . . . . . . . . . . . . . . . . . . . . Garrison 4 | . . . . . . . . . . . . 3 . . 1 . . . . . . . . . Intercept . | . . . . . . . . . . . . . . . . . . . . . . . . . Searches Triggered . | . . . . . . . . . . . . . . . . . . . . . . . . . Construction Impeded 1 | . . . . . . . . . . . . . . . 1 . . . . . . . . . Haulers Reinforced . | . . . . . . . . . . . . . . . . . . . . . . . . . Active Scanning Responses . | . . . . . . . . . . . . . . . . . . . . . . . . . Cargo Convoy Interrupts . | . . . . . . . . . . . . . . . . . . . . . . . . . Stealth | -11 -10 -10 -9 -9 -9 -8 -8 -7 -7 -7 -7 -5 -5 -5 -4 -4 -4 -4 -4 -3 -3 -2 -2 -2 --------- Run | Yrd Mat Min Mat Min Exi Min Mat Fac Sto Rec Scr Fac Upp Upp Fac Ext Cet Arc Hub Res Qua Res Tes Frg Distress Signals 36 | . 1 2 . . . . 3 1 1 . . 3 . . 1 1 2 . 2 4 1 2 . 12 Communications Jammed 1 | . . . . . . . . . . . . . . . . . . . . . . . . 1 Distress Signals 1 | . . . . . . . . . . . . . . . . . . . . . . . . 1 Times Spotted 859 | . 31 5 23 8 . 4 31 15 4 . . 11 15 . 10 31 10 9 13 13 4 25 9 588 Peak Tracking Total 20 | . 4 2 4 3 . 4 5 13 4 . . 3 8 . 4 6 5 3 12 5 2 20 3 18 Tactical Retreats 59 | . 2 . . . . . 5 1 . . . 3 2 . 3 2 . . 1 5 1 6 1 27 ECM-based Alert Blocks 58 | . . . . . . . . . . . . 2 11 . 9 . . . . 1 1 28 3 3 Traps | -11 -10 -10 -9 -9 -9 -8 -8 -7 -7 -7 -7 -5 -5 -5 -4 -4 -4 -4 -4 -3 -3 -2 -2 -2 ------- Run | Yrd Mat Min Mat Min Exi Min Mat Fac Sto Rec Scr Fac Upp Upp Fac Ext Cet Arc Hub Res Qua Res Tes Frg Traps Triggered 17 | . 1 . . . . . 1 1 1 . . 1 . . . 5 . . 2 1 . . 2 2 Indirectly . | . . . . . . . . . . . . . . . . . . . . . . . . . Trap Hack Attempts . | . . . . . . . . . . . . . . . . . . . . . . . . . Triggered . | . . . . . . . . . . . . . . . . . . . . . . . . . Disarmed . | . . . . . . . . . . . . . . . . . . . . . . . . . Reprogrammed . | . . . . . . . . . . . . . . . . . . . . . . . . . Reused . | . . . . . . . . . . . . . . . . . . . . . . . . . Traps Extracted . | . . . . . . . . . . . . . . . . . . . . . . . . . Installed . | . . . . . . . . . . . . . . . . . . . . . . . . . Triggered . | . . . . . . . . . . . . . . . . . . . . . . . . . Machines | -11 -10 -10 -9 -9 -9 -8 -8 -7 -7 -7 -7 -5 -5 -5 -4 -4 -4 -4 -4 -3 -3 -2 -2 -2 ---------- Run | Yrd Mat Min Mat Min Exi Min Mat Fac Sto Rec Scr Fac Upp Upp Fac Ext Cet Arc Hub Res Qua Res Tes Frg Machines Disabled 48 | . . 2 4 2 . . 1 2 1 . . 1 . . 1 3 . 3 10 . 6 . 4 8 Max in Single Turn 5 | . . 1 1 2 . . 1 1 1 . . 1 . . 1 2 . . 5 . 1 . 1 1 Garrison Access 5 | . . . . . . . . . . . . 2 . . 1 . . . 1 . 1 . . . Network Hub 3 | . . . . . . . . . . . . . . . . . . . 3 . . . . . Machines Repaired . | . . . . . . . . . . . . . . . . . . . . . . . . . Machines Dismantled . | . . . . . . . . . . . . . . . . . . . . . . . . . Machines Sabotaged 2 | . . . . . . . . . . . . . . . . . . . 2 . . . . . Overloaded Fab Kills . | . . . . . . . . . . . . . . . . . . . . . . . . . Hacking | -11 -10 -10 -9 -9 -9 -8 -8 -7 -7 -7 -7 -5 -5 -5 -4 -4 -4 -4 -4 -3 -3 -2 -2 -2 --------- Run | Yrd Mat Min Mat Min Exi Min Mat Fac Sto Rec Scr Fac Upp Upp Fac Ext Cet Arc Hub Res Qua Res Tes Frg Machines Accessed 136 | . 9 1 10 . 1 . 3 3 4 10 2 20 . . 11 12 1 . 5 10 8 10 6 10 Terminals 78 | . 6 1 8 . . . 1 1 3 4 . 8 . . 5 12 1 . 4 6 6 5 4 3 Fabricators 8 | . . . . . . . . . . . . 2 . . 2 . . . . . . . . 4 Repair Stations 6 | . 1 . 1 . . . 1 1 . . . 1 . . . . . . . . . . 1 . Recycling Units 25 | . 2 . 1 . . . . . . 6 . 5 . . 3 . . . . 3 . 3 . 2 Scanalyzers 7 | . . . . . . . . . . . . 1 . . . . . . . 1 1 2 1 1 Garrison Access 9 | . . . . . . . 1 1 1 . . 3 . . 1 . . . 1 . 1 . . . Total Hacks 381 | . 28 3 25 . 1 . 11 12 9 24 22 35 . . 36 26 3 . 11 47 34 24 14 16 Successful 221 | . 16 . 12 . 1 . 5 3 . 20 22 23 . . 24 14 . . 6 19 16 14 13 13 Failed 156 | . 11 3 13 . . . 6 9 9 4 . 11 . . 12 12 3 . 5 28 17 9 1 3 Catastrophic 21 | . 3 . 4 . . . . 1 2 . . 4 . . 1 . . . 1 2 1 . . 2 Database Lockouts 4 | . 1 . . . . . . . . . . 1 . . . . . . . . 1 1 . . Manual 207 | . 22 3 24 . . . 3 8 6 22 . 16 . . 18 16 1 . 9 27 11 15 2 4 Terminals 257 | . 24 3 22 . . . 3 7 8 18 . 15 . . 27 26 3 . 10 41 26 13 7 4 Fabricators 18 | . . . . . . . . . . . . 4 . . 5 . . . . . . . . 9 Repair Stations 18 | . 2 . 2 . . . 5 4 . . . 1 . . . . . . . . . . 4 . Recycling Units 29 | . 2 . 1 . . . . . . 6 . 6 . . 3 . . . . 3 . 6 . 2 Scanalyzers 23 | . . . . . . . . . . . . 6 . . . . . . . 3 5 5 3 1 Garrison Access 13 | . . . . . . . 3 1 1 . . 3 . . 1 . . . 1 . 3 . . . Terminal Hacks 96 | . 5 . . . 1 . . 2 . 7 22 5 . . 9 9 . . 1 11 11 6 6 1 Record 23 | . . . . . 1 . . . . . 22 . . . . . . . . . . . . . Part Schematic 3 | . . . . . . . . . . 1 . 1 . . 1 . . . . . . . . . Robot Analysis 1 | . 1 . . . . . . . . . . . . . . . . . . . . . . . Prototype ID Bank 5 | . 2 . . . . . . . . . . 1 . . 1 . . . . 1 . . . . Open Door 8 | . . . . . . . . . . . . . . . . 7 . . . 1 . . . . Level Access Points 5 | . . . . . . . . . . . . . . . . . . . 1 . 2 . 1 1 Branch Access Points 7 | . 1 . . . . . . 1 . 1 . 1 . . 1 . . . . 1 . 1 . . Machine Index 1 | . . . . . . . . . . . . . . . . . . . . . 1 . . . Terminal Index 8 | . 1 . . . . . . . . 3 . . . . . 1 . . . 1 1 . 1 . Fabricator Index 2 | . . . . . . . . . . . . . . . 1 . . . . 1 . . . . Recycling Unit Index 1 | . . . . . . . . . . . . . . . . . . . . 1 . . . . Alert Level 2 | . . . . . . . . . . . . . . . . . . . . . 1 1 . . Unreport Threat 3 | . . . . . . . . . . . . . . . . . . . . . 2 . 1 . Locate Traps 1 | . . . . . . . . . . . . . . . 1 . . . . . . . . . Recall Investigation 1 | . . . . . . . . . . . . . . . 1 . . . . . . . . . Recall Extermination 5 | . . . . . . . . . . . . . . . . . . . . 1 1 2 1 . Recall Reinforcements 2 | . . . . . . . . . . . . . . . . 1 . . . 1 . . . . Registered Components 8 | . . . . . . . . 1 . 1 . 1 . . 1 . . . . 1 1 1 1 . Registered Prototypes 8 | . . . . . . . . . . 1 . 1 . . 1 . . . . 2 1 1 1 . Zone Layout 2 | . . . . . . . . . . . . . . . 1 . . . . . 1 . . . Fabricator Hacks 14 | . . . . . . . . . . . . 2 . . 4 . . . . . . . . 8 Network Status 2 | . . . . . . . . . . . . 1 . . 1 . . . . . . . . . Load Schematic 5 | . . . . . . . . . . . . . . . 1 . . . . . . . . 4 Build 7 | . . . . . . . . . . . . 1 . . 2 . . . . . . . . 4 Repair Station Hacks 12 | . 2 . 2 . . . 4 . . . . . . . . . . . . . . . 4 . Scan Component 6 | . 1 . 1 . . . 2 . . . . . . . . . . . . . . . 2 . Repair 6 | . 1 . 1 . . . 2 . . . . . . . . . . . . . . . 2 . Recycling Unit Hacks . | . . . . . . . . . . . . . . . . . . . . . . . . . Scanalyzer 14 | . . . . . . . . . . . . 5 . . . . . . . 1 2 3 3 . Retrieve Study 14 | . . . . . . . . . . . . 5 . . . . . . . 1 2 3 3 . Garrison Access Hacks 5 | . . . . . . . . . . . . 2 . . 1 . . . 1 . 1 . . . Seal Access 5 | . . . . . . . . . . . . 2 . . 1 . . . 1 . 1 . . . Unauthorized Hacks 80 | . 9 . 10 . . . 1 1 . 13 . 9 . . 10 5 . . 4 7 2 5 . 4 Terminals 52 | . 7 . 9 . . . 1 . . 7 . 3 . . 6 5 . . 4 4 2 2 . 2 Track 1 | . . . . . . . . . . . . . . . 1 . . . . . . . . . Assimilate 5 | . . . . . . . . . . . . . . . 1 2 . . . 1 . 1 . . Botnet 24 | . 2 . 2 . . . 1 . . 3 . 2 . . 3 2 . . 2 2 2 1 . 2 Operators 4 | . . . . . . . . . . . . 1 . . 1 1 . . . 1 . . . . Skim 16 | . 5 . 7 . . . . . . 4 . . . . . . . . . . . . . . Sabotage 2 | . . . . . . . . . . . . . . . . . . . 2 . . . . . Fabricators 1 | . . . . . . . . . . . . . . . 1 . . . . . . . . . Liberate 1 | . . . . . . . . . . . . . . . 1 . . . . . . . . . Repair Stations 2 | . . . . . . . . 1 . . . 1 . . . . . . . . . . . . Mechanics 2 | . . . . . . . . 1 . . . 1 . . . . . . . . . . . . Recycling Units 25 | . 2 . 1 . . . . . . 6 . 5 . . 3 . . . . 3 . 3 . 2 Tunnel 9 | . 2 . 1 . . . . . . 6 . . . . . . . . . . . . . . Fedlink 16 | . . . . . . . . . . . . 5 . . 3 . . . . 3 . 3 . 2 Scanalyzers . | . . . . . . . . . . . . . . . . . . . . . . . . . Garrison Access . | . . . . . . . . . . . . . . . . . . . . . . . . . Data Cores Recovered 1 | . . . . . . . . . . . . . . . . . . . . . 1 . . . Used . | . . . . . . . . . . . . . . . . . . . . . . . . . Hacking Detections 76 | . 6 1 8 . . . 3 3 4 5 . 9 . . 6 4 2 . 2 6 6 3 2 6 Full Trace Events 8 | . . . 1 . . . 1 . . . . . . . 2 . . . . . . . . 4 Feedback Events . | . . . . . . . . . . . . . . . . . . . . . . . . . Feedback Blocked . | . . . . . . . . . . . . . . . . . . . . . . . . . Robot Schematics Acquired . | . . . . . . . . . . . . . . . . . . . . . . . . . Robots Built 2 | . . . . . . . . . . . . 2 . . . . . . . . . . . . Authchips . | . . . . . . . . . . . . . . . . . . . . . . . . . Time 67 | . . . . . . . . . . . . 67 . . . . . . . . . . . . Total Robot Build Rating 8 | . . . . . . . . . . . . 8 . . . . . . . . . . . . Part Schematics Acquired 3 | . . . . . . . . . . 1 . 1 . . 1 . . . . . . . . . Parts Built 7 | . . . . . . . . . . . . . . . 3 . . . . . . . . 4 Authchips . | . . . . . . . . . . . . . . . . . . . . . . . . . Time 432 | . . . . . . . . . . . . . . . 208 . . . . . . . . 224 Total Part Build Rating 44 | . . . . . . . . . . . . . . . 20 . . . . . . . . 24 Part Studies Acquired 14 | . . . . . . . . . . . . 5 . . . . . . . 1 2 3 3 . Parts Repaired 6 | . 1 . 1 . . . 2 . . . . . . . . . . . . . . . 2 . Time 185 | . 26 . 26 . . . 52 . . . . . . . . . . . . . . . 81 . Parts Recycled . | . . . . . . . . . . . . . . . . . . . . . . . . . Recycled Matter . | . . . . . . . . . . . . . . . . . . . . . . . . . Retrieved Matter . | . . . . . . . . . . . . . . . . . . . . . . . . . Retrieved Components . | . . . . . . . . . . . . . . . . . . . . . . . . . Parts Scanalyzed . | . . . . . . . . . . . . . . . . . . . . . . . . . Part Schematics Acquired . | . . . . . . . . . . . . . . . . . . . . . . . . . Parts Damaged . | . . . . . . . . . . . . . . . . . . . . . . . . . Bothacking | -11 -10 -10 -9 -9 -9 -8 -8 -7 -7 -7 -7 -5 -5 -5 -4 -4 -4 -4 -4 -3 -3 -2 -2 -2 ------------ Run | Yrd Mat Min Mat Min Exi Min Mat Fac Sto Rec Scr Fac Upp Upp Fac Ext Cet Arc Hub Res Qua Res Tes Frg Used RIF Installer . | . . . . . . . . . . . . . . . . . . . . . . . . . Robots Hacked 16 | . . . . . . . . . . . . 1 . . . 5 1 . . 2 . 5 . 2 Non-combat 1 | . . . . . . . . . . . . . . . . 1 . . . . . . . . Combat 2 | . . . . . . . . . . . . . . . . 2 . . . . . . . . Robot Hacks Applied 4 | . . . . . . . . . . . . . . . . 4 . . . . . . . . parse_system 4 | . . . . . . . . . . . . . . . . 4 . . . . . . . . Manual 14 | . . . . . . . . . . . . 1 . . . 3 1 . . 2 . 5 . 2 Relay Couplers Released . | . . . . . . . . . . . . . . . . . . . . . . . . . Fabnet Peak Effective % . | . . . . . . . . . . . . . . . . . . . . . . . . . Robots Rewired 28 | . . . . . . . . . . . . . . . . 28 . . . . . . . . Allies Hacked . | . . . . . . . . . . . . . . . . . . . . . . . . . Hacks Repelled . | . . . . . . . . . . . . . . . . . . . . . . . . . Allies | -11 -10 -10 -9 -9 -9 -8 -8 -7 -7 -7 -7 -5 -5 -5 -4 -4 -4 -4 -4 -3 -3 -2 -2 -2 -------- Run | Yrd Mat Min Mat Min Exi Min Mat Fac Sto Rec Scr Fac Upp Upp Fac Ext Cet Arc Hub Res Qua Res Tes Frg Total Allies 50 | . . 4 . . . . . . . . . 2 . . . 37 5 . . 1 . 1 . . Largest Group 25 | . . 4 4 . . . . . . . . 2 . . . 24 25 18 15 1 . 1 . . Highest-Rated Group 1311 | . . 71 71 . . . . . . . . 64 . . . 1096 1311 951 852 10 . 45 . . Highest-Rated Ally 159 | . . 31 31 . . . . . . . . 32 . . . 159 152 96 96 10 . 45 . . Initial UFD Resources 117 | . . . . . . . . . . . . 39 59 59 63 79 79 79 79 81 97 101 117 117 Total Orders . | . . . . . . . . . . . . . . . . . . . . . . . . . Ally Attacks 366 | . . . 67 . . . . . . . . 5 . . . 164 56 35 39 . . . . . Total Damage 10565 | . . . 778 . . . . . . . . 239 . . . 4521 1867 1273 1887 . . . . . Kills 77 | . . . 19 . . . . . . . . 1 . . . 33 10 4 10 . . . . . Allies Corrupted . | . . . . . . . . . . . . . . . . . . . . . . . . . Allies Melted 3 | . . . . . . . . . . . . 1 . . . . . . . . . . . 2 Intel | -11 -10 -10 -9 -9 -9 -8 -8 -7 -7 -7 -7 -5 -5 -5 -4 -4 -4 -4 -4 -3 -3 -2 -2 -2 ------- Run | Yrd Mat Min Mat Min Exi Min Mat Fac Sto Rec Scr Fac Upp Upp Fac Ext Cet Arc Hub Res Qua Res Tes Frg Active Infowar (turns) 14962 | 63 820 1028 1615 921 493 . 1111 127 93 134 214 545 140 24 401 1244 398 171 96 546 269 243 899 3367 Optics 7725 | . . . . . . . . . . . . . 67 24 401 1244 398 171 96 546 269 243 899 3367 Sensors 5497 | . . . . 1 . . . 106 93 134 214 512 4 . 336 1168 4 83 65 535 269 243 899 831 Structural 3705 | . . . . . . . . . . . . 137 1 . 230 1105 6 81 83 358 217 243 899 345 Seismic 6071 | 63 820 1028 1615 920 493 . 1111 21 . . . . . . . . . . . . . . . . Machine Analysis 1321 | . . . . . . . . . . . . . . . . . . . . . . 158 899 264 Cloaking 543 | . . . . . . . . . . . . . . . . . . . . 33 269 241 . . Jamming 1408 | . . . . . . . . . . . . . . . . . . . . . . . 838 570 ECM 1359 | . . . . . . . . . . . . 266 139 24 171 33 . . . 92 51 156 73 354 Robot Analysis Total 1 | . 1 . . . . . . . . . . . . . . . . . . . . . . . Derelict Logs Recovered 5 | . . 1 . 2 . . . . . . . . 1 1 . . . . . . . . . . Drone Launches . | . . . . . . . . . . . . . . . . . . . . . . . . . Drone Recoveries . | . . . . . . . . . . . . . . . . . . . . . . . . . Exploration | -11 -10 -10 -9 -9 -9 -8 -8 -7 -7 -7 -7 -5 -5 -5 -4 -4 -4 -4 -4 -3 -3 -2 -2 -2 ------------- Run | Yrd Mat Min Mat Min Exi Min Mat Fac Sto Rec Scr Fac Upp Upp Fac Ext Cet Arc Hub Res Qua Res Tes Frg Turns Passed 17458 | 210 995 1625 1628 924 974 923 1215 163 93 142 214 548 140 24 401 1244 398 171 96 546 269 243 899 3373 Spaces Moved 18369 | 95 545 627 849 556 425 229 290 368 196 510 870 1159 225 74 818 1030 222 117 185 1023 647 568 973 5768 Core 7 | 4 . . . . . . . . . . . . . . . . . . 3 . . . . . Treads 2742 | 91 170 338 736 556 425 229 197 . . . . . . . . . . . . . . . . . Legs 2 | . . . . . . . 2 . . . . . . . . . . . . . . . . . Wheels 868 | . 375 289 113 . . . 91 . . . . . . . . . . . . . . . . . Hover . | . . . . . . . . . . . . . . . . . . . . . . . . . Flight 14750 | . . . . . . . . 368 196 510 870 1159 225 74 818 1030 222 117 182 1023 647 568 973 5768 Fastest Speed 20 | 50 100 115 125 160 160 400 150 23 23 23 23 20 30 30 30 33 33 30 29 23 25 25 25 26 Average Speed 58 | 155 120 140 155 160 226 400 306 24 23 23 23 27 30 30 32 33 33 32 34 26 25 25 25 28 Slowest Speed 960 | 160 160 240 160 160 400 400 960 26 23 23 23 30 30 30 33 33 33 33 400 31 101 25 110 106 Overloaded Moves . | . . . . . . . . . . . . . . . . . . . . . . . . . Propulsion Burnouts . | . . . . . . . . . . . . . . . . . . . . . . . . . Robots Hopped 37 | . . . . . . . . 1 1 5 . . . . 4 3 . 1 . 1 2 1 . 18 Potential Cave-ins 23 | . . . . . . . . . . . . . . . . . . . . . . . . 23 Cave-ins Triggered . | . . . . . . . . . . . . . . . . . . . . . . . . . Teleports 1 | . . . . . . . . . . . . . . . . . . . . . . . . 1 Exploration Rate (%) 54 | 4 94 95 57 99 61 63 33 12 48 90 80 32 46 8 25 85 61 84 26 40 78 24 56 62 Regions Visited 24 Branch Regions 16 Pre-discovered Areas 25 | . 5 . 5 2 1 . . . . 6 5 1 . . . . . . . . . . . . Known Exits Taken 21 | . 1 1 1 . 1 1 . 1 1 1 1 1 1 1 1 1 1 1 1 1 1 1 1 . Unknown Exits Taken 3 | 1 . . . 1 . . 1 . . . . . . . . . . . . . . . . . Scrap Searched 9 | . . . . 2 . 1 . . . . 3 . 3 . . . . . . . . . . . Spaces Dug 188 | . . . . 11 . 9 17 3 2 1 . 23 31 1 27 4 . . 3 20 7 11 8 10 Terrain Destroyed 796 | . . . 51 45 . 9 17 3 2 1 . 23 34 1 32 76 . . 174 25 9 11 8 275 Melee 78 | . . . . . . . 2 3 2 1 . 18 . . 4 . . . . 18 6 11 8 5 Projectile 331 | . . . . . . . . . . . . 5 7 1 28 5 . . 5 7 3 . . 270 AOE 387 | . . . 51 45 . 9 15 . . . . . 27 . . 71 . . 169 . . . . . Terrain Rammed . | . . . . . . . . . . . . . . . . . . . . . . . . . Walls Destroyed . | . . . . . . . . . . . . . . . . . . . . . . . . . Machines Disabled . | . . . . . . . . . . . . . . . . . . . . . . . . . Actions | -11 -10 -10 -9 -9 -9 -8 -8 -7 -7 -7 -7 -5 -5 -5 -4 -4 -4 -4 -4 -3 -3 -2 -2 -2 --------- Run | Yrd Mat Min Mat Min Exi Min Mat Fac Sto Rec Scr Fac Upp Upp Fac Ext Cet Arc Hub Res Qua Res Tes Frg Total 23614 | 133 756 1336 1070 578 442 235 485 427 234 520 887 1316 282 74 913 1894 544 233 209 1229 711 634 1587 6885 Wait 3073 | 18 112 665 100 . . . 86 . 18 2 . 52 34 . 18 712 310 95 4 88 15 27 561 156 Move 18281 | 94 544 626 848 555 424 228 289 365 193 500 869 1158 224 73 809 1025 221 114 184 1020 642 566 972 5738 Hop 28 | . . . . . . . . 1 1 4 . . . . 4 1 . 1 . 1 2 1 . 12 Pick Up 194 | 1 15 9 22 2 14 1 13 4 1 2 7 12 3 . 8 1 1 3 1 10 5 5 2 52 Fast Attach 191 | 7 2 4 4 2 1 1 13 4 . 2 2 7 1 . 5 2 1 . 6 13 4 2 9 99 Attach 87 | . 5 1 2 . . . 7 11 . . . 7 3 . 2 . . 3 1 3 2 3 1 36 Detach 51 | . 1 . . . . . 1 4 . . . 2 1 . 2 . . . 2 4 . 1 1 32 Swap 196 | 1 8 5 16 6 . 2 9 8 1 2 . 17 4 . 11 13 5 4 2 16 12 2 2 50 Drop 280 | . 3 8 28 4 3 1 6 20 1 4 9 20 1 . 13 4 4 3 3 18 9 4 7 107 Fire 948 | 12 65 16 46 8 . 2 56 . . . . 6 9 1 30 56 1 . 6 32 6 5 2 589 Melee 165 | . . . . . . . 2 10 4 4 . 35 2 . 11 6 1 10 . 24 14 17 15 10 Ram 1 | . . . . . . . . . . . . . . . . . . . . . . 1 . . Kick 1 | . . . . . . . 1 . . . . . . . . . . . . . . . . . Crush 10 | . 1 2 4 1 . . 2 . . . . . . . . . . . . . . . . . Escape Stasis 104 | . . . . . . . . . 15 . . . . . . 74 . . . . . . 15 . Rewire . | . . . . . . . . . . . . . . . . . . . . . . . . . Trap . | . . . . . . . . . . . . . . . . . . . . . . . . . Miscellaneous 4 | . . . . . . . . . . . . . . . . . . . . . . . . 4 Route ------- -11/Scrapyard -10/Materials (discovered 5 exits: *Mat x3 / *Min / Sub) -10/Mines (discovered 2 exits: *Mat x2) -9/Materials (discovered 4 exits: *Mat x3 / *Min) -9/Mines (discovered 3 exits: *Mat x2 / *Exi) -9/Exiles (discovered 2 exits: *Min x2) -8/Mines -8/Materials -7/Factory (discovered 5 exits: [*Fac] / *Sto x2 / Low x2) -7/Storage -7/Recycling (discovered 2 exits: *Fac / *Scr) -7/Scraptown (discovered 2 exits: *Fac x2) -5/Factory (discovered 2 exits: *Upp x2) -5/Upper Caves -5/Upper Caves (discovered 2 exits: *Fac / War) -4/Factory (discovered 7 exits: *Res x3 / Upp x2 / *Ext x2) -4/Extension (discovered 3 exits: *Res x2 / *Cet) -4/Cetus (discovered 2 exits: *Res / *Arc) -4/Archives (discovered 3 exits: *Res / *Hub x2) -4/Hub_04(d) (discovered 4 exits: *Res x4) -3/Research (discovered 5 exits: *Res x2 / Arm / *Qua x2) -3/Quarantine -2/Research (discovered 2 exits: *Acc / *Tes) -2/Testing (discovered 3 exits: Acc / *Sec / *Frg) -2/Protoforge (discovered 1 exit: *Acc) History --------- Turn | Location | Event 8 | -11/Scrapyard | Discovered new exit (range 15) 211 | -11/Scrapyard | Entered Materials 307 | -10/Materials | Build established: Mutant 630 | -10/Materials | Lost 3 parts (1p1n1w) 750 | -10/Materials | Discovered new exit (range 13) 790 | -10/Materials | Central database locked down 852 | -10/Materials | Build established: Scavenger-Mutant 862 | -10/Materials | Discovered new exit (range 5) 898 | -10/Materials | Repaired Lgt. Assault Rifle 902 | -10/Materials | Learned 2 Mines zone layouts 952 | -10/Materials | Identified exit to Materials 952 | -10/Materials | Identified exit to Subcaves 952 | -10/Materials | Identified exit to Mines 993 | -10/Materials | Learned 2 Storage zone layouts 1025 | -10/Materials | Learned location of Storage (-7) 1058 | -10/Materials | Learned location of 3 exits from Materials 1073 | -10/Materials | Learned location of Recycling (-7) 1094 | -10/Materials | Learned 2 Mines zone layouts 1125 | -10/Materials | Learned 4 Subcaves zone layouts 1167 | -10/Materials | Learned 4 Materials zone layouts 1206 | -10/Materials | Entered Mines 1216 | -10/Mines | Core integrity fell below 50% 1221 | -10/Mines | Met a Derelict bent on vengeance 1290 | -10/Mines | Assembled infested the area 2249 | -10/Mines | Joined a pair of Derelicts in attacking an 0b10 outpost 2314 | -10/Mines | Met a Derelict testing a Signal Generator 2318 | -10/Mines | Found Signal Generator 2403 | -10/Mines | Discovered exit to Materials (range 8) 2467 | -10/Mines | Escorted by a lone wolf Derelict 2647 | -10/Mines | Assisted by bots powering up and referring to "LRC-V3" 2719 | -10/Mines | Discovered exit to Materials (range 8) 2831 | -10/Mines | Entered Materials 2831 | -9/Materials | Accompanied by 4 allies 2831 | -9/Materials | Evolved 2 slots: Propulsion x1, Weapon x1 2832 | -9/Materials | Identified exit to Mines 2833 | -9/Materials | Identified exit to Materials 3146 | -9/Materials | Build established: Scavenger-Gunner 3537 | -9/Materials | Repaired Lgt. Treads 3944 | -9/Materials | Learned Storage terminal intel 3974 | -9/Materials | Learned 2 Materials zone layouts 3998 | -9/Materials | Learned location of Zion (-6) 4459 | -9/Materials | Entered Mines 4757 | -9/Mines | Deemed a non-threat by the Exiles lab entrance 4757 | -9/Mines | Discovered new exit (range 5) 4792 | -9/Mines | Discovered exit to Materials (range 14) 4920 | -9/Mines | Found a damaged Exp. Sensor Array with a note attached 4924 | -9/Mines | Found Prototype Device 4924 | -9/Mines | Identified Exp. Sensor Array 5043 | -9/Mines | Discovered exit to Materials (range 8) 5131 | -9/Mines | Received a Rocket Launcher from a helpful Derelict 5383 | -9/Mines | Entered Exiles 5384 | -9/Exiles | Identified exit to Mines 5423 | -9/Exiles | Met 8R-AWN 5449 | -9/Exiles | Met EX-HEX 5527 | -9/Exiles | Met EX-DEC 5564 | -9/Exiles | Visited The Gauntlet 5764 | -9/Exiles | Discovered exit to Mines (range 14) 6186 | -9/Exiles | Build established: Hauler-Gunner 6357 | -9/Exiles | Entered Mines 7224 | -8/Mines | Discovered exit to Materials (range 7) 7280 | -8/Mines | Entered Materials 7280 | -8/Materials | Evolved 2 slots: Propulsion x1, Utility x1 7700 | -8/Materials | Repaired Lgt. Treads 7727 | -8/Materials | Repaired Lgt. Treads 8462 | -8/Materials | Lost 4 parts (2n2w) 8473 | -8/Materials | Discovered new exit (range 8) 8495 | -8/Materials | Entered Factory 8495 | -7/Factory | Evolved 2 slots: Propulsion x1, Utility x1 8496 | -7/Factory | Identified exit to Storage 8555 | -7/Factory | Discovered new exit (range 16) 8559 | -7/Factory | Identified exit to Lower Caves 8658 | -7/Factory | Entered Storage 8660 | -7/Storage | Loaded intel: 11 terminal locations 8750 | -7/Storage | Used back door to open Recycling access 8750 | -7/Storage | Discovered new exit (range 5) 8751 | -7/Storage | Identified exit to Recycling 8751 | -7/Storage | Entered Recycling 8755 | -7/Recycling | Build established: Sprinter 8881 | -7/Recycling | Discovered new exit (range 16) 8886 | -7/Recycling | Scanned before Scraplab entrance 8891 | -7/Recycling | Entered Scraplab 8892 | -7/Recycling | Discovered new exit (range 2) 8892 | -7/Recycling | Identified exit to Scraptown 8893 | -7/Recycling | Entered Scraptown 8930 | -7/Scraptown | Visited Fellowship of the Rings 8955 | -7/Scraptown | Discovered new exit (range 11) 8968 | -7/Scraptown | Visited Cyclists 8971 | -7/Scraptown | Visited Symbiants 8977 | -7/Scraptown | Visited Assassins FH 8978 | -7/Scraptown | Visited Junk Repository 8983 | -7/Scraptown | Visited TADAMA 8987 | -7/Scraptown | Visited UFD Registry 8987 | -7/Scraptown | Registered with UFD as "Powerunit" 8992 | -7/Scraptown | Visited Curators Association 8995 | -7/Scraptown | Visited Botcube Research 8999 | -7/Scraptown | Visited Junk Repository 9016 | -7/Scraptown | Visited LU-1G1's Boring Crew 9020 | -7/Scraptown | Visited Scrap Suit Storage 9023 | -7/Scraptown | Visited Supply Room 9025 | -7/Scraptown | Visited Scrapoid Research Area 9029 | -7/Scraptown | Visited Derelict Rescue Squad 9035 | -7/Scraptown | Visited Abandonware Association 9037 | -7/Scraptown | Learned abandonware demo "SHUTEYE.EXE" 9037 | -7/Scraptown | Learned abandonware demo "REVENGE.EXE" 9042 | -7/Scraptown | Visited Cartography Club 9063 | -7/Scraptown | Learned location of Armory (-3) 9063 | -7/Scraptown | Learned 12 Factory zone layouts 9063 | -7/Scraptown | Learned 8 Lower Caves zone layouts 9063 | -7/Scraptown | Learned 12 Lower Caves zone layouts 9063 | -7/Scraptown | Learned 16 Lower Caves zone layouts 9063 | -7/Scraptown | Learned 8 Upper Caves zone layouts 9063 | -7/Scraptown | Learned 24 Proximity Caves zone layouts 9063 | -7/Scraptown | Learned Research emergency access door positions 9063 | -7/Scraptown | Learned location of 2 exits from Lower Caves 9063 | -7/Scraptown | Learned location of 2 exits from Upper Caves 9063 | -7/Scraptown | Learned location of 1 exit from Proximity Caves 9065 | -7/Scraptown | Found Deep Structural Scanner 9093 | -7/Scraptown | Met Optimus 9093 | -7/Scraptown | Accepted into 0bPrime 9106 | -7/Scraptown | Discovered new exit (range 3) 9107 | -7/Scraptown | Identified exit to Factory 9107 | -7/Scraptown | Entered Factory 9107 | -5/Factory | Evolved 4 slots: Power x1, Propulsion x1, Utility x2 9108 | -5/Factory | Identified exit to Upper Caves 9220 | -5/Factory | Fabricated Y-54 Guardian? 9247 | -5/Factory | Loaded intel: 8 recycling unit locations 9299 | -5/Factory | Learned location of Protoforge (-2) 9332 | -5/Factory | Garrison activated, responded to threat 9391 | -5/Factory | Spotted B-75 Beast 9409 | -5/Factory | Central database locked down 9655 | -5/Factory | Entered Upper Caves 9656 | -5/Upper Caves | Identified exit to Upper Caves 9692 | -5/Upper Caves | Lost 3 parts (1p1n1u) 9775 | -5/Upper Caves | Learned Factory terminal intel 9783 | -5/Upper Caves | Attracted the attention of an 0b10 outpost 9795 | -5/Upper Caves | Entered another Upper Caves area 9796 | -5/Upper Caves | Identified exit to Warlord 9815 | -5/Upper Caves | Discovered new exit (range 16) 9819 | -5/Upper Caves | Identified exit to Factory 9819 | -5/Upper Caves | Entered Factory 9819 | -4/Factory | Evolved 2 slots: Utility x2 9820 | -4/Factory | Identified exit to Research 9821 | -4/Factory | Loaded intel: 26 terminal locations 9827 | -4/Factory | Found Prototype Processor 9827 | -4/Factory | Identified Exp. Signal Interpreter 9840 | -4/Factory | Identified exit to Upper Caves 9840 | -4/Factory | Identified exit to Extension 9842 | -4/Factory | Garrison activated, responded to threat 9858 | -4/Factory | Loaded intel: 8 recycling unit locations 9943 | -4/Factory | Watched by a mysterious "MATRIX" hacker. 10018 | -4/Factory | Fabricated Lrn. Sensor Array (x2) 10115 | -4/Factory | Fabricated Cld. Nuclear Pulse Thruster? 10220 | -4/Factory | Entered Extension 10252 | -4/Extension | Disrupted transfer network 10474 | -4/Extension | Rescued a captive Derelict 10475 | -4/Extension | Rescued a captive Derelict 10485 | -4/Extension | Rescued a captive Derelict 10493 | -4/Extension | Rescued a captive Derelict 10733 | -4/Extension | Spotted B-86 Titan 10758 | -4/Extension | Spotted B-86 Titan 10764 | -4/Extension | Allies destroyed B-86 Titan 10792 | -4/Extension | Allies destroyed B-86 Titan 10795 | -4/Extension | Discovered exit to Research (range 5) 10818 | -4/Extension | Lost 5 allies 10829 | -4/Extension | Rescued a captive Derelict 10830 | -4/Extension | Rescued a captive Derelict 10944 | -4/Extension | Rescued A7 10974 | -4/Extension | Lost 3 allies 11045 | -4/Extension | Rescued a captive Derelict 11176 | -4/Extension | Build established: Commander-Scout 11209 | -4/Extension | Discovered exit to Research (range 11) 11214 | -4/Extension | Discovered new exit (range 6) 11219 | -4/Extension | Identified exit to Cetus 11464 | -4/Extension | Entered Cetus 11464 | -4/Cetus | Accompanied by 24 allies (A7) 11469 | -4/Cetus | Acquired a Cetus Manufacturing Module code from A7 11475 | -4/Cetus | Spotted Cetus Guard 11475 | -4/Cetus | Spotted Cetus Guard 11475 | -4/Cetus | Spotted Cetus Guard 11478 | -4/Cetus | Allies destroyed Cetus Guard 11478 | -4/Cetus | Spotted Cetus Guard 11508 | -4/Cetus | Extracted ID and sensor layout for unrecognized location from A7's data core 11528 | -4/Cetus | Lost 4 allies 11531 | -4/Cetus | Started Cetus Manufacturing Module 11556 | -4/Cetus | Manufactured an Enhanced Grunt 11567 | -4/Cetus | Discovered new exit (range 21) 11574 | -4/Cetus | Identified exit to Archives 11581 | -4/Cetus | Manufactured an Enhanced Grunt 11606 | -4/Cetus | Manufactured an Enhanced Grunt 11631 | -4/Cetus | Manufactured an Enhanced Grunt 11656 | -4/Cetus | Manufactured an Enhanced Grunt 11685 | -4/Cetus | Spotted Cetus Guard 11685 | -4/Cetus | Spotted Cetus Guard 11685 | -4/Cetus | Spotted Cetus Guard 11685 | -4/Cetus | Spotted Cetus Guard 11700 | -4/Cetus | Allies destroyed Cetus Guard 11705 | -4/Cetus | Allies destroyed Cetus Guard 11716 | -4/Cetus | Allies destroyed Cetus Guard 11716 | -4/Cetus | Allies destroyed Cetus Guard 11717 | -4/Cetus | Discovered exit to Research (range 22) 11723 | -4/Cetus | Met Revision 17 11747 | -4/Cetus | Lost 6 allies 11763 | -4/Cetus | Build established: Commander-Sprinter 11862 | -4/Cetus | Entered Archives 11862 | -4/Archives | Accompanied by 19 allies 11900 | -4/Archives | Discovered new exit (range 22) 11914 | -4/Archives | Lost 4 allies 11915 | -4/Archives | Discovered new exit (range 22) 11925 | -4/Archives | Discovered exit to Research (range 22) 11965 | -4/Archives | Identified exit to Hub_04(d) 12033 | -4/Archives | Entered Hub_04(d) 12033 | -4/Hub_04(d) | Accompanied by 15 allies 12083 | -4/Hub_04(d) | Network Hub disabled 12093 | -4/Hub_04(d) | Network Hub disabled 12115 | -4/Hub_04(d) | Network Hub disabled 12117 | -4/Hub_04(d) | Spotted Lightning 12119 | -4/Hub_04(d) | Spotted Lightning 12127 | -4/Hub_04(d) | Spotted Lightning 12129 | -4/Hub_04(d) | Entered Research 12129 | -3/Research | Evolved 2 slots: Propulsion x1, Utility x1 12152 | -3/Research | Lost 7 allies 12172 | -3/Research | Spotted B-86 Titan 12193 | -3/Research | Identified exit to Armory 12193 | -3/Research | Identified exit to Quarantine 12329 | -3/Research | Revision forces began assault on 0b10 12385 | -3/Research | Discovered new exit (range 13) 12524 | -3/Research | Loaded intel: 5 recycling unit locations 12586 | -3/Research | Found Prototype Device 12586 | -3/Research | Identified Exp. Focal Shield 12619 | -3/Research | Build established: Hacker-Scout 12635 | -3/Research | Discovered new exit (range 10) 12640 | -3/Research | Identified exit to Research 12675 | -3/Research | Entered Quarantine 12680 | -3/Quarantine | Found Alien Slashing Weapon 12680 | -3/Quarantine | Identified Sigix Broadsword 12694 | -3/Quarantine | Found Alien Artifact 12697 | -3/Quarantine | Identified Subatomic Replicator 12697 | -3/Quarantine | Used Subatomic Replicator to replicate Electron Diverter 12715 | -3/Quarantine | Cryocooling Duct disabled 12730 | -3/Quarantine | Ambient heat levels rising (+20) 12730 | -3/Quarantine | Non-combat units ordered to evacuate 12737 | -3/Quarantine | Found Alien Artifact 12740 | -3/Quarantine | Found Alien Artifact 12748 | -3/Quarantine | Central database locked down 12849 | -3/Quarantine | Targeted by mysterious "MATRIX" hacker. 12881 | -3/Quarantine | Found Alien Energy Cannon 12881 | -3/Quarantine | Identified Core Cannon 12942 | -3/Quarantine | Build established: Hacker-Ninja 12944 | -3/Quarantine | Entered Research 12944 | -2/Research | Evolved 2 slots: Utility x2 13040 | -2/Research | Identified exit to Testing 13053 | -2/Research | Loaded intel: 5 recycling unit locations 13098 | -2/Research | Discovered new exit (range 15) 13101 | -2/Research | Central database locked down 13187 | -2/Research | Entered Testing 13196 | -2/Testing | Found Prototype Hackware 13196 | -2/Testing | Identified System Mapper 13207 | -2/Testing | Found Prototype Energy Gun 13207 | -2/Testing | Identified Hyp. EM Gauss Rifle 13216 | -2/Testing | Lost 3 parts (1p1u1w) 13238 | -2/Testing | Identified exit to Access 13290 | -2/Testing | Found Prototype Ballistic Gun 13290 | -2/Testing | Identified Hyp. Multirail 13309 | -2/Testing | Repaired ECM Suite 13412 | -2/Testing | Repaired Broken Imp. Diametric Drive? 13562 | -2/Testing | Spotted Fortress 13580 | -2/Testing | Discovered new exit (range 6) 13580 | -2/Testing | Discovered new exit (range 6) 13582 | -2/Testing | Identified exit to Protoforge 13583 | -2/Testing | Identified exit to Section 7 14086 | -2/Testing | Entered Protoforge 14111 | -2/Protoforge | Spotted Hotshot 14175 | -2/Protoforge | Spotted Hotshot 14178 | -2/Protoforge | Spotted Hotshot 14179 | -2/Protoforge | Spotted B-90 Cyclops 14281 | -2/Protoforge | Found Prototype Protection 14281 | -2/Protoforge | Identified Cep. Core Shell 14304 | -2/Protoforge | Found Prototype Launcher 14304 | -2/Protoforge | Identified Cep. Concussive Dispersal Blaster 14306 | -2/Protoforge | Superfortress began startup sequence 14312 | -2/Protoforge | Spotted Immortal 14320 | -2/Protoforge | Found Prototype Storage 14320 | -2/Protoforge | Identified Cep. Chromion Battery 14344 | -2/Protoforge | Spotted EXE-6 14344 | -2/Protoforge | Spotted EXE-6 14350 | -2/Protoforge | Spotted Decapitator 14350 | -2/Protoforge | Spotted Decapitator 14357 | -2/Protoforge | UFD initiated attack on Protoforge (Readiness: High) 14357 | -2/Protoforge | Loaded intel: 3 recycling unit locations 14394 | -2/Protoforge | Found Prototype Device 14394 | -2/Protoforge | Identified Cep. Weapon Articulator 14399 | -2/Protoforge | Found Prototype Device 14399 | -2/Protoforge | Identified Cep. Recoil Nullifier 14425 | -2/Protoforge | Found Prototype Ballistic Gun 14425 | -2/Protoforge | Identified Cep. XC Strikerail 14427 | -2/Protoforge | Optimus greeted in Protoforge 14429 | -2/Protoforge | Found Prototype Processor 14429 | -2/Protoforge | Identified Exp. Core Analyzer 14449 | -2/Protoforge | Identified Dimensional Node Initializer 14449 | -2/Protoforge | Initialized slip node 14469 | -2/Protoforge | Fabricated Cld. Nuclear Pulse Thruster? 14471 | -2/Protoforge | Fabricated Cld. Nuclear Pulse Thruster? 14473 | -2/Protoforge | Fabricated Cld. Nuclear Pulse Thruster? 14474 | -2/Protoforge | Fabricated Cld. Nuclear Pulse Thruster? 14474 | -2/Protoforge | Identified Transdimensional Reconstructor 14474 | -2/Protoforge | Warped through subspace to slip node 14496 | -2/Protoforge | Found UFD Drillbomb 14513 | -2/Protoforge | Lost 6 allies 14520 | -2/Protoforge | Spotted AP7-3 14551 | -2/Protoforge | Spotted AP7-3 14627 | -2/Protoforge | Found 0bPrime Scrap Suit 14645 | -2/Protoforge | Found Prototype Processor 14645 | -2/Protoforge | Identified Exp. Targeting Computer 14648 | -2/Protoforge | Found Prototype Processor 14648 | -2/Protoforge | Identified Exp. Target Analyzer 14653 | -2/Protoforge | Spotted Executioner 14654 | -2/Protoforge | Found Prototype Device 14654 | -2/Protoforge | Identified Exp. ECM Suite 14660 | -2/Protoforge | Spotted Executioner 14686 | -2/Protoforge | Destroyed Executioner 14688 | -2/Protoforge | Spotted Striker 14690 | -2/Protoforge | Spotted Striker 14693 | -2/Protoforge | Found Exp. Core Analyzer 14695 | -2/Protoforge | Found Prototype Device 14695 | -2/Protoforge | Identified Adv. Kinecellerator 14699 | -2/Protoforge | Found Exp. Core Analyzer 14707 | -2/Protoforge | Spotted Executioner 14720 | -2/Protoforge | Destroyed Executioner 14722 | -2/Protoforge | Spotted Striker 14723 | -2/Protoforge | Spotted Executioner 14747 | -2/Protoforge | Found Cep. XC Strikerail 14779 | -2/Protoforge | Lost 26 allies 14795 | -2/Protoforge | Spotted Striker 14796 | -2/Protoforge | Spotted Striker 14800 | -2/Protoforge | Destroyed Striker 14846 | -2/Protoforge | Spotted Hotshot 14846 | -2/Protoforge | Spotted Hotshot 14846 | -2/Protoforge | Spotted Executioner 14846 | -2/Protoforge | Spotted Executioner 14868 | -2/Protoforge | Spotted Hotshot 14873 | -2/Protoforge | Spotted Hotshot 14873 | -2/Protoforge | Destroyed Hotshot 14876 | -2/Protoforge | Spotted Hotshot 14877 | -2/Protoforge | Spotted Hotshot 14897 | -2/Protoforge | Spotted Overlord 14930 | -2/Protoforge | Build established: Scavenger-Scout 14939 | -2/Protoforge | Found Adv. Kinecellerator 14953 | -2/Protoforge | Lost 15 allies 14969 | -2/Protoforge | Spotted Executioner 14972 | -2/Protoforge | Spotted Striker 14992 | -2/Protoforge | Found Prototype Device 14992 | -2/Protoforge | Identified Exp. Transmission Jammer 14995 | -2/Protoforge | Spotted Executioner 14995 | -2/Protoforge | Spotted Executioner 15002 | -2/Protoforge | Destroyed Striker 15004 | -2/Protoforge | Lost 3 parts (1p1n1w) 15006 | -2/Protoforge | Spotted Executioner 15006 | -2/Protoforge | Spotted Executioner 15007 | -2/Protoforge | Spotted Executioner 15022 | -2/Protoforge | Spotted Executioner 15032 | -2/Protoforge | Destroyed Executioner 15072 | -2/Protoforge | Spotted Striker 15076 | -2/Protoforge | Spotted Striker 15100 | -2/Protoforge | Lost 27 allies 15101 | -2/Protoforge | Destroyed Executioner 15103 | -2/Protoforge | Destroyed Executioner 15116 | -2/Protoforge | Found Exp. Targeting Computer 15134 | -2/Protoforge | Destroyed 11 combat bots 15187 | -2/Protoforge | Lost 4 allies 15219 | -2/Protoforge | Spotted Hotshot 15220 | -2/Protoforge | Spotted Hotshot 15222 | -2/Protoforge | Destroyed Hotshot 15225 | -2/Protoforge | Spotted Hotshot 15227 | -2/Protoforge | Spotted Hotshot 15233 | -2/Protoforge | Destroyed Hotshot 15237 | -2/Protoforge | Destroyed Hotshot 15240 | -2/Protoforge | Spotted Hotshot 15240 | -2/Protoforge | Spotted Hotshot 15242 | -2/Protoforge | Destroyed Hotshot 15246 | -2/Protoforge | Spotted Executioner 15251 | -2/Protoforge | Spotted Executioner 15272 | -2/Protoforge | Destroyed 12 combat bots 15275 | -2/Protoforge | Destroyed Hotshot 15283 | -2/Protoforge | Destroyed Hotshot 15284 | -2/Protoforge | Build established: Scavenger-Sprinter 15305 | -2/Protoforge | Destroyed Executioner 15314 | -2/Protoforge | Spotted Executioner 15316 | -2/Protoforge | Spotted Executioner 15332 | -2/Protoforge | Found Adv. Kinecellerator 15339 | -2/Protoforge | Spotted Executioner 15340 | -2/Protoforge | Spotted Striker 15345 | -2/Protoforge | Destroyed Executioner 15350 | -2/Protoforge | Destroyed Striker 15355 | -2/Protoforge | Spotted Striker 15357 | -2/Protoforge | Spotted Executioner 15364 | -2/Protoforge | Destroyed Striker 15365 | -2/Protoforge | Spotted Striker 15369 | -2/Protoforge | Spotted Striker 15369 | -2/Protoforge | Destroyed Striker 15371 | -2/Protoforge | Spotted Executioner 15372 | -2/Protoforge | Spotted Executioner 15379 | -2/Protoforge | Destroyed Executioner 15400 | -2/Protoforge | Destroyed 18 combat bots 15401 | -2/Protoforge | Destroyed Striker 15415 | -2/Protoforge | Lost 16 allies 15434 | -2/Protoforge | Spotted Executioner 15434 | -2/Protoforge | Spotted Striker 15434 | -2/Protoforge | Spotted Executioner 15451 | -2/Protoforge | Destroyed Striker 15454 | -2/Protoforge | Destroyed Executioner 15456 | -2/Protoforge | Spotted Executioner 15461 | -2/Protoforge | Destroyed Executioner 15471 | -2/Protoforge | Destroyed B-90 Cyclops 15472 | -2/Protoforge | Spotted Executioner 15472 | -2/Protoforge | Spotted Striker 15475 | -2/Protoforge | Destroyed Executioner 15481 | -2/Protoforge | Core integrity fell below 50% 15487 | -2/Protoforge | Destroyed Hotshot 15488 | -2/Protoforge | Spotted AP7-3 15491 | -2/Protoforge | Destroyed Hotshot 15491 | -2/Protoforge | UFD reported confirmed Drillbomb installation 15506 | -2/Protoforge | Spotted Executioner 15507 | -2/Protoforge | Spotted Executioner 15509 | -2/Protoforge | Lost 5 allies 15520 | -2/Protoforge | Spotted Striker 15521 | -2/Protoforge | Destroyed Executioner 15522 | -2/Protoforge | Spotted Striker 15536 | -2/Protoforge | Destroyed Striker 15553 | -2/Protoforge | Lost 5 allies 15558 | -2/Protoforge | Lost 3 parts (1u2w) 15564 | -2/Protoforge | Spotted Executioner 15570 | -2/Protoforge | Spotted Executioner 15570 | -2/Protoforge | Destroyed Executioner 15575 | -2/Protoforge | Destroyed Executioner 15588 | -2/Protoforge | Installed UFD Drillbomb at designated target 15588 | -2/Protoforge | UFD reported confirmed Drillbomb installation 15602 | -2/Protoforge | Destroyed 32 combat bots 15616 | -2/Protoforge | Spotted Striker 15617 | -2/Protoforge | Spotted Executioner 15619 | -2/Protoforge | Destroyed Striker 15619 | -2/Protoforge | Destroyed Executioner 15623 | -2/Protoforge | Spotted Striker 15632 | -2/Protoforge | Spotted Executioner 15632 | -2/Protoforge | Spotted Executioner 15632 | -2/Protoforge | Spotted Striker 15646 | -2/Protoforge | Found Exp. Targeting Computer 15652 | -2/Protoforge | Destroyed Striker 15655 | -2/Protoforge | Found Scrap Suit 15657 | -2/Protoforge | Spotted Hotshot 15658 | -2/Protoforge | Spotted Hotshot 15658 | -2/Protoforge | Spotted Hotshot 15659 | -2/Protoforge | Destroyed Hotshot 15663 | -2/Protoforge | Spotted Striker 15663 | -2/Protoforge | Spotted Executioner 15685 | -2/Protoforge | Destroyed Executioner 15690 | -2/Protoforge | Lost 6 allies 15714 | -2/Protoforge | Destroyed Striker 15717 | -2/Protoforge | Spotted Striker 15719 | -2/Protoforge | Spotted Striker 15733 | -2/Protoforge | Destroyed Striker 15742 | -2/Protoforge | Spotted Hotshot 15779 | -2/Protoforge | Spotted Striker 15781 | -2/Protoforge | Destroyed 28 combat bots 15788 | -2/Protoforge | Destroyed Striker 15820 | -2/Protoforge | UFD reported confirmed Drillbomb installation 15841 | -2/Protoforge | Spotted Executioner 15841 | -2/Protoforge | Spotted Executioner 15847 | -2/Protoforge | Found Adv. Kinecellerator 15848 | -2/Protoforge | P-80 Master assimilated allied Lugger 882 15877 | -2/Protoforge | Lost 4 allies 15893 | -2/Protoforge | Destroyed Executioner 15897 | -2/Protoforge | Destroyed Executioner 15917 | -2/Protoforge | UFD reported confirmed Drillbomb installation 15930 | -2/Protoforge | Spotted Executioner 15930 | -2/Protoforge | Spotted Executioner 15930 | -2/Protoforge | Spotted Striker 15933 | -2/Protoforge | Spotted Executioner 15947 | -2/Protoforge | Spotted Striker 15949 | -2/Protoforge | Spotted Striker 15956 | -2/Protoforge | Spotted Hotshot 15969 | -2/Protoforge | Destroyed Striker 15991 | -2/Protoforge | Destroyed Executioner 16017 | -2/Protoforge | Spotted Hotshot 16022 | -2/Protoforge | Spotted Hotshot 16023 | -2/Protoforge | Destroyed Executioner 16024 | -2/Protoforge | Spotted Executioner 16026 | -2/Protoforge | Lost 5 parts (1p1u3w) 16029 | -2/Protoforge | Spotted Executioner 16034 | -2/Protoforge | Spotted Hotshot 16035 | -2/Protoforge | Destroyed Executioner 16042 | -2/Protoforge | Destroyed Hotshot 16049 | -2/Protoforge | Lost 14 allies 16056 | -2/Protoforge | Spotted Executioner 16057 | -2/Protoforge | Spotted Executioner 16057 | -2/Protoforge | Spotted Executioner 16057 | -2/Protoforge | Spotted Executioner 16058 | -2/Protoforge | Destroyed Executioner 16062 | -2/Protoforge | Destroyed Executioner 16071 | -2/Protoforge | Destroyed Executioner 16098 | -2/Protoforge | Found Adv. Kinecellerator 16113 | -2/Protoforge | Destroyed 16 combat bots 16119 | -2/Protoforge | Spotted Striker 16120 | -2/Protoforge | Destroyed Striker 16120 | -2/Protoforge | Spotted Striker 16124 | -2/Protoforge | Lost 12 allies 16126 | -2/Protoforge | Destroyed Striker 16130 | -2/Protoforge | Lost 3 parts (3u) 16139 | -2/Protoforge | Spotted Executioner 16139 | -2/Protoforge | Spotted Striker 16217 | -2/Protoforge | Spotted Striker 16229 | -2/Protoforge | Spotted Striker 16234 | -2/Protoforge | Destroyed Striker 16236 | -2/Protoforge | Spotted Striker 16238 | -2/Protoforge | Spotted Executioner 16246 | -2/Protoforge | Spotted Striker 16247 | -2/Protoforge | Core integrity fell below 20% 16247 | -2/Protoforge | Destroyed Executioner 16248 | -2/Protoforge | Spotted Striker 16249 | -2/Protoforge | Destroyed Striker 16257 | -2/Protoforge | Destroyed Striker 16264 | -2/Protoforge | Destroyed Striker 16308 | -2/Protoforge | Lost 3 parts (2u1w) 16313 | -2/Protoforge | Destroyed 19 combat bots 16316 | -2/Protoforge | Spotted Striker 16316 | -2/Protoforge | Spotted Executioner 16319 | -2/Protoforge | UFD reported confirmed Drillbomb installation 16324 | -2/Protoforge | Destroyed Executioner 16332 | -2/Protoforge | Spotted Striker 16332 | -2/Protoforge | Spotted Striker 16335 | -2/Protoforge | Destroyed 02F19-K 16348 | -2/Protoforge | Destroyed Striker 16356 | -2/Protoforge | Spotted Executioner 16357 | -2/Protoforge | Spotted Executioner 16387 | -2/Protoforge | Found Cep. Core Shell 16389 | -2/Protoforge | Found Cep. Core Shell 16399 | -2/Protoforge | Lost 11 allies 16418 | -2/Protoforge | Spotted Striker 16419 | -2/Protoforge | Destroyed Striker 16421 | -2/Protoforge | Spotted Striker 16438 | -2/Protoforge | Spotted Executioner 16442 | -2/Protoforge | Spotted Striker 16450 | -2/Protoforge | Destroyed Executioner 16456 | -2/Protoforge | Spotted Immortal 16482 | -2/Protoforge | Lost 3 parts (3u) 16491 | -2/Protoforge | Lost 5 allies 16491 | -2/Protoforge | Found Cep. Weapon Articulator 16522 | -2/Protoforge | Spotted Hotshot 16525 | -2/Protoforge | Destroyed Hotshot 16527 | -2/Protoforge | Spotted Hotshot 16527 | -2/Protoforge | Spotted Striker 16528 | -2/Protoforge | Spotted Striker 16528 | -2/Protoforge | Spotted Hotshot 16530 | -2/Protoforge | Destroyed Striker 16534 | -2/Protoforge | Destroyed Hotshot 16542 | -2/Protoforge | Spotted Striker 16543 | -2/Protoforge | Destroyed Hotshot 16559 | -2/Protoforge | Spotted Striker 16559 | -2/Protoforge | Spotted Executioner 16562 | -2/Protoforge | Destroyed Executioner 16575 | -2/Protoforge | Destroyed Striker 16582 | -2/Protoforge | Found Scrap Suit 16598 | -2/Protoforge | Destroyed 13 combat bots 16616 | -2/Protoforge | Spotted Striker 16616 | -2/Protoforge | Spotted Striker 16617 | -2/Protoforge | Spotted Executioner 16617 | -2/Protoforge | Spotted Executioner 16627 | -2/Protoforge | Destroyed Striker 16630 | -2/Protoforge | Destroyed Striker 16643 | -2/Protoforge | Spotted Hotshot 16644 | -2/Protoforge | Spotted Hotshot 16645 | -2/Protoforge | Spotted Hotshot 16657 | -2/Protoforge | Destroyed Executioner 16661 | -2/Protoforge | Lost 3 parts (1u2w) 16671 | -2/Protoforge | Lost 10 allies 16709 | -2/Protoforge | Spotted Hotshot 16713 | -2/Protoforge | Destroyed Hotshot 16715 | -2/Protoforge | Spotted Hotshot 16715 | -2/Protoforge | Spotted Hotshot 16715 | -2/Protoforge | Destroyed Hotshot 16715 | -2/Protoforge | Destroyed Hotshot 16765 | -2/Protoforge | Found Cep. Core Shell 16779 | -2/Protoforge | Spotted Executioner 16780 | -2/Protoforge | Spotted Executioner 16781 | -2/Protoforge | Spotted Striker 16781 | -2/Protoforge | Spotted Striker 16792 | -2/Protoforge | Destroyed Executioner 16794 | -2/Protoforge | Destroyed Executioner 16800 | -2/Protoforge | P-80 Master assimilated allied CI-J3X(j) 16838 | -2/Protoforge | Lost 5 parts (1p1u3w) 16839 | -2/Protoforge | Spotted Striker 16842 | -2/Protoforge | Spotted Striker 16845 | -2/Protoforge | Found Adv. Kinecellerator 16848 | -2/Protoforge | Found Scrap Suit 16853 | -2/Protoforge | Destroyed Striker 16860 | -2/Protoforge | Spotted Executioner 16860 | -2/Protoforge | Spotted Executioner 16876 | -2/Protoforge | Spotted Executioner 16879 | -2/Protoforge | Destroyed Executioner 16885 | -2/Protoforge | System corruption reached 10% 16898 | -2/Protoforge | Spotted Executioner 16898 | -2/Protoforge | Spotted Executioner 16905 | -2/Protoforge | Destroyed 12 combat bots 16925 | -2/Protoforge | Spotted Executioner 16925 | -2/Protoforge | Spotted Striker 16927 | -2/Protoforge | Spotted Executioner 16929 | -2/Protoforge | Spotted Striker 16936 | -2/Protoforge | Lost 4 allies 16944 | -2/Protoforge | Spotted Striker 16958 | -2/Protoforge | Spotted Striker 16963 | -2/Protoforge | Lost 3 parts (1n2u) 16998 | -2/Protoforge | Destroyed Executioner 17001 | -2/Protoforge | P-80 Master assimilated allied 02FFE-D 17044 | -2/Protoforge | Spotted Striker 17048 | -2/Protoforge | Spotted Striker 17051 | -2/Protoforge | Lost 9 allies 17074 | -2/Protoforge | Destroyed Striker 17076 | -2/Protoforge | Destroyed Striker 17144 | -2/Protoforge | Spotted Striker 17153 | -2/Protoforge | Spotted Striker 17208 | -2/Protoforge | Spotted Striker 17211 | -2/Protoforge | Spotted Striker 17222 | -2/Protoforge | Destroyed Striker 17229 | -2/Protoforge | Spotted Striker 17231 | -2/Protoforge | Spotted Striker 17231 | -2/Protoforge | P-80 Master assimilated allied R3-3SH(E) 17243 | -2/Protoforge | Destroyed Striker 17245 | -2/Protoforge | Destroyed Striker 17247 | -2/Protoforge | Spotted Striker 17252 | -2/Protoforge | Spotted Striker 17256 | -2/Protoforge | Destroyed Striker 17287 | -2/Protoforge | Lost 5 allies 17304 | -2/Protoforge | Found Scrap Suit 17311 | -2/Protoforge | Destroyed 11 combat bots 17329 | -2/Protoforge | Spotted Executioner 17329 | -2/Protoforge | Spotted Executioner 17333 | -2/Protoforge | UFD reported confirmed Drillbomb installation 17340 | -2/Protoforge | Spotted Executioner 17341 | -2/Protoforge | Spotted Striker 17364 | -2/Protoforge | Lost 4 allies 17368 | -2/Protoforge | Destroyed Executioner 17376 | -2/Protoforge | Spotted Executioner 17382 | -2/Protoforge | Lost 3 parts (2n1u) 17382 | -2/Protoforge | Destroyed Executioner 17391 | -2/Protoforge | Spotted Hotshot 17423 | -2/Protoforge | Spotted Striker 17424 | -2/Protoforge | Spotted Striker 17424 | -2/Protoforge | Spotted Executioner 17437 | -2/Protoforge | Spotted Hotshot 17459 | -2/Protoforge | Destroyed by H-88 Terminator with Heavy Machine Gun Last Messages --------------- 17406_ Dropped Ovr. Coil Gun. 17406_ Acquired Centrium Light Armor Plating. 17414_ Acquired 30 matter. 17418_ FEQ|PDH|0HWL,TTWR9H6&GHPOXA,MEH 17421_ Slug penetrates Build Unifier. 17423_ Penetrated by Slug. 17423_ Slug penetrates Wall. 17424_ Slug penetrates Build Unifier. 17428_ Penetrated by Slug. 17428_ Slug penetrates Executioner. 17431_ Slug penetrates Wall. 17431_ Penetrated by Slug. 17431_ Slug penetrates Wall. 17442_ Ovr. Coil Gun destroyed. 17442_ Slug penetrates Wall. 17459_ System corrupted: Component data lost. 17459_ Xenon Bombardment Thruster destroyed. 17459_ Slug penetrates Earth. 17459_ Slug penetrates Wall. [Achievement: Rambo] Map ----- +----------------------------------------------------+ | **![! %[=[*=!!" !!!]%[!%!!!!![%%%%% % """"" | | %=![=*=!!%= %=[%!! *[[/=!===[ %% ""%%% ! "#""" | | % ====!![=!%!=[!=%[!/*=|*/*" %%%%%%%%%%= "#""" | | % %=!=[%%|*=%%!%!*==%=%%% % %%%%%"%% !=! """"" | | %%% *!!! =%=!%!"=*=!*!] %%% % %%%=![*[ "#""" | | % %%%== !%%!%[ % !=!%%%%%%; =[!==* "" "" | | %"" ""%""""%%%%"K%%%%;%%%%%%%%%% %;![!** "# | | %%"%%%%%%%%C%%%%%E%C%%% m% %;[ %=!=" %##### | | % % %&%%%%%% %%%& %%%% ==[; ;;"""""##"""#### | | |/=[ % [*%[!%%;!!%&!%!!!!!;% #### ## #??? | | !!!! %% %%[=%| !=!!!!|=%!%; ;# ##??? ?? #??? | | *!! ""%% ;; =;;%;]*!%*=!;;;;% % # #????#??##??? | | * =!=[![ ;=! %!& %%% % %% " #???????????? | | ==%=|!=[%!%[=% =!!%% % " #???????????? | | !%!|=!=!=*==% % *[*=%;% %% % ###???????????? | | [![! ![* [[%% !/%=%[]% ; ##????????????? | | !*!["=!![[=%*= %%!%%*!!!% ; ;;##################? | | =*=[*=!!%!=[!=[*=*=!%=!! % #################? | | ###"!%!]!![==!=[%!!=[%; =; ###????##???? ?##? | | ####!!!!!|%%"!%%![!!%; % /; ##??????##???? "" ##? | | #### =%!=!%*!*!""";; % %; #???????##???? ""?##? | | ##### "%%[!! = *%%" %% %% #???????##???? S?##? | | ##?###; *="!% * % % ; ; #???????##????" ?##? | | #?## ;!!!%g!;|!" %#! ; #???????##????" ?### | | ######;!*i*%/*%!" [=# ; ####?????##????" ?### | | ##### #== h !![% ; @; # #?????##????" ???? | | ##### "!!=!" #[!" =* # ; # #########???? ?#? | | #####"[%*= ; ; "" # %;;;#############+"###? | | !![!! " # "" # %; ##### # ? | | *%![% " " # ; ##?## # | | =% "########""% %%; ##?## " | | !!!######### ;% %; ##?## " + | | ######" ![%* ##?????#=;%%%/ ##?## " ? | | """" "!!%!= ########%!%% ;] ##?## +?? | | """" "%!!!#####"####!!%!%! ##?## #?? | | " ="*| ! * "%%*=]!; ##?#### ###?? | | """ =!" == !%! [%= !%m!|; ##?#### ###?? | | != %!!*!!= =%!===%;;##;######???## ##### | | *!!"[!%!%[ ! !%; ######### ##### | | !=="!*=="""[*";###|!%*; "" ######### ##??? | | " ##!""!/*![!"";%! %; """ " #### ###?? | | """#"""" " ""=%=%%=!!]!!!/; """" #### ###" ###?? | | "" !" "!"[=! %!%!!!;%!!= """ ####?##" ##?? | | !%="""%"%%!%=!%!%!]*!%! " ##?##" "T ##?? | | ## [*!%%![[[=%!*!=!%!==!*[;;###########" "" ##?? | | ## *!="""%""=[%!!=[[|[==!;; " ##?? | | ## %=%" " [[**%!!=!!%*;; " ##?? | | ###"+""### " ==!!!!]%*! [## "## ####?? | | * [ ###### !!!]=[#%%/"# ### ####?? | | [! ###T"##########" "" ### ##???? | +----------------------------------------------------+ Best States ------------- Heat Dissipation 87 Coolant Potential 120 Energy Generation 44 Energy Capacity 1450 Matter Stores 300 Matter Capacity 300 Sight Range 23 Robot Scan Range 20 Terrain Scan Density 10 ECM Strength 1 Jamming Range 16 Cloak Strength 2 Power Amplification 30 Additional Mass Support 9 Armor Coverage 225 Core Shielding 90 Propulsion Shielding 90 Weapon Shielding 90 Evasion (%) 78 Targeting Accuracy 54 Target Analysis 10 Core Analysis 12 Armor Integrity Analysis 40 Recoil Reduction 99 Kinecelleration 50 Offensive Hacking 46 Defensive Hacking 14 Item Schematics ----------------- Field Propulsion Drive | -7/Recycling | Hacked Field Propulsion Array | -5/Factory | Hacked Cld. Nuclear Pulse Thruster | -4/Factory | Hacked Robot Schematics ------------------ None Fabricated ------------ Y-54 Guardian | x2 | -5/Factory | Preloaded Lrn. Sensor Array | x2 | -4/Factory | Preloaded Cld. Nuclear Pulse Thruster | x1 | -4/Factory Cld. Nuclear Pulse Thruster | x1 | -2/Protoforge Cld. Nuclear Pulse Thruster | x1 | -2/Protoforge Cld. Nuclear Pulse Thruster | x1 | -2/Protoforge Cld. Nuclear Pulse Thruster | x1 | -2/Protoforge Repaired ---------- Lgt. Assault Rifle | 35% | -10/Materials Lgt. Treads | 47% | -9/Materials Lgt. Treads | 36% | -8/Materials Lgt. Treads | 37% | -8/Materials ECM Suite | 15% | -2/Testing Imp. Diametric Drive | 99% | -2/Testing | Broken Studied --------- Field Propulsion Drive | -5/Factory | Hacked Nuclear Pulse Array | -5/Factory | Hacked Lgt. Fission Core | -5/Factory | Hacked Mic. Nuclear Core | -5/Factory | Hacked Lgt. Nuclear Core | -5/Factory | Hacked Impulse Thruster | -3/Research | Hacked Impulse Thruster Array | -3/Quarantine | Hacked Mic. Antimatter Reactor | -3/Quarantine | Hacked Lgt. Particle Reactor | -2/Research | Hacked Adv. Remote Datajack | -2/Research | Hacked Lgt. Angular Momentum Engine | -2/Research | Hacked Quantum Reactor | -2/Testing | Hacked Enh. Nova Cannon | -2/Testing | Hacked Hvy. Rocket Launcher | -2/Testing | Hacked Alien Tech Used ----------------- Sigix Broadsword Subatomic Replicator Core Cannon Dimensional Node Initializer Transdimensional Reconstructor Achievements -------------- Anti-science Crusade Fine I'll Do It Myself Perfect Aim Rambo UFD MVP Challenges ------------ None Game ------ Seed PowerGatlingTube Manual? 0 Play Time 05:12:45 Cumulative 445.2 hours Start 2026.04.21 @ 12:21:51 End 2026.04.21 @ 19:05:57 Sessions 1 Manual Loads 0 Difficulty Rogue Special Mode None Game No. 263 Rogue 263 Adventurer 0 Explorer 0 Win Type - Total 18 Types 9/1/3/2/1/0/0/2/0/0 Lore% 94 Gallery% 82 Achievement% 73 Wizard Run 0 Options --------- Layout 1 ASCII 0 Keyboard 0 Movement Mouse Keybinds 0 Fullscreen 2 Font 32/SmallcapsGlow Map View 50x35 Zoom Use 0% Tactical HUD 1 Map Filters NONE Filters NONE Steam 1 RUN: c117fbf7-2383-403a-9b28-122506ef5b36